{"text_format":"1","workbook":"xlsx","n_sheets":31,"sheets":["県域情報","List","概要","新-様式16-2コピー元","新-様式16-2②コピー元","廃解-様式14コピー元","廃解-様式14②コピー元","TOP","新規","新-様式16","新-様式16-2","構造図","新-チェックシート","写真例","位置図例","写真例②","新-様式16-3","新-様式16-2②","新-チェックシート②","廃止解約","廃解-様式16-4","廃解-様式16-1","廃解-様式14","廃解-様式16-3","廃解-チェックシート","廃解-様式14②","廃解-チェックシート②","名義変更","名-様式16-5","名-様式16-1","名-チェックシート"],"not_rendered":{"charts":0,"images":11,"macros":1,"external_links":0,"defined_names":28,"comments":12,"pivot_tables":0},"unopened":[],"bounds":{"document_bytes":16777216,"sheet_cells":100000,"rows_first":2000,"rows_last":500,"rows_between":2000,"halvings":0,"cell_chars":16384,"cell_head_chars":4096},"cells_cut":0,"cells_raw":0,"read":"whole","date_system":"1900"}

{"sheet":"県域情報","index":0,"n_rows":35,"n_cols":14,"rows_kept":35,"cut":false,"hidden":true,"merged":[]}
["地域","支店","支店長","送付先〒（宛名状・様式16-61行目）","送付先住所（宛名状・様式16-62行目）","送付先宛名（宛名状）","送付先宛名2（宛名状）","TEL　（様式16-66行目）","代理人①５５行目","代理人①５６行目","代理人①５７行目","様式16-63行目","様式16-64行目","様式16-65行目"]
["大阪府","関西","小川　成子","〒570-0083","大阪府守口市京阪本通1-9-6　NTT大阪守口ビル","㈱NTTフィールドテクノ　サービスマネジメント部　フィールドオペレーション部門","設備貸借管理センタ　関西ユニット　設備管理担当（大阪）　添架グループ","06-6105-3200","㈱NTTフィールドテクノ　サービスマネジメント部","フィールドオペレーション部門　設備貸借管理センタ","関西ユニット長","㈱ＮＴＴフィールドテクノ","サービスマネジメント部　フィールドオペレーション部門","設備貸借管理センタ　関西ユニット　設備管理担当（大阪）"]
["和歌山県","和歌山","岩元　豊明","〒570-0083","大阪府守口市京阪本通1-9-6　NTT大阪守口ビル","㈱NTTフィールドテクノ　サービスマネジメント部　フィールドオペレーション部門","設備貸借管理センタ　関西ユニット　設備管理担当（大阪）　添架グループ","06-6105-3200","㈱NTTフィールドテクノ　サービスマネジメント部","フィールドオペレーション部門　設備貸借管理センタ","関西ユニット長","㈱ＮＴＴフィールドテクノ","サービスマネジメント部　フィールドオペレーション部門","設備貸借管理センタ　関西ユニット　設備管理担当（大阪）"]
["京都府","京都","横田　さくら","〒570-0083","大阪府守口市京阪本通1-9-6　NTT大阪守口ビル","㈱NTTフィールドテクノ　サービスマネジメント部　フィールドオペレーション部門","設備貸借管理センタ　関西ユニット　設備管理担当（大阪）　添架グループ","06-6105-3200","㈱NTTフィールドテクノ　サービスマネジメント部","フィールドオペレーション部門　設備貸借管理センタ","関西ユニット長","㈱ＮＴＴフィールドテクノ","サービスマネジメント部　フィールドオペレーション部門","設備貸借管理センタ　関西ユニット　設備管理担当（大阪）"]
["奈良県","奈良","浅井　達之","〒570-0083","大阪府守口市京阪本通1-9-6　NTT大阪守口ビル","㈱NTTフィールドテクノ　サービスマネジメント部　フィールドオペレーション部門","設備貸借管理センタ　関西ユニット　設備管理担当（大阪）　添架グループ","06-6105-3200","㈱NTTフィールドテクノ　サービスマネジメント部","フィールドオペレーション部門　設備貸借管理センタ","関西ユニット長","㈱ＮＴＴフィールドテクノ","サービスマネジメント部　フィールドオペレーション部門","設備貸借管理センタ　関西ユニット　設備管理担当（大阪）"]
["滋賀県","滋賀","若林　宣公","〒570-0083","大阪府守口市京阪本通1-9-6　NTT大阪守口ビル","㈱NTTフィールドテクノ　サービスマネジメント部　フィールドオペレーション部門","設備貸借管理センタ　関西ユニット　設備管理担当（大阪）　添架グループ","06-6105-3200","㈱NTTフィールドテクノ　サービスマネジメント部","フィールドオペレーション部門　設備貸借管理センタ","関西ユニット長","㈱ＮＴＴフィールドテクノ","サービスマネジメント部　フィールドオペレーション部門","設備貸借管理センタ　関西ユニット　設備管理担当（大阪）"]
["兵庫県","兵庫","樋口　浩子","〒673-0898","兵庫県明石市樽屋町8-27　NTT明石別館3階","㈱NTTフィールドテクノ　サービスマネジメント部　フィールドオペレーション部門","設備貸借管理センタ　関西ユニット　設備管理担当（兵庫）　添架グループ","078-918-9104","㈱NTTフィールドテクノ　サービスマネジメント部","フィールドオペレーション部門　設備貸借管理センタ","関西ユニット　設備管理担当（兵庫）課長","㈱ＮＴＴフィールドテクノ","サービスマネジメント部　フィールドオペレーション部門","設備貸借管理センタ　関西ユニット　設備管理担当（兵庫）"]
["愛知県","東海","児玉　美奈子","〒451-0043","愛知県名古屋市西区新道2-13-17　NTT菊井ビル5階","㈱NTTフィールドテクノ　サービスマネジメント部　フィールドオペレーション部門","設備貸借管理センタ　東海ユニット　設備管理担当（名古屋）　添架グループ","052-533-5955","㈱NTTフィールドテクノ　サービスマネジメント部","フィールドオペレーション部門　設備貸借管理センタ","東海ユニット長","㈱ＮＴＴフィールドテクノ","サービスマネジメント部　フィールドオペレーション部門","設備貸借管理センタ　東海ユニット　設備管理担当（名古屋）"]
["静岡県","静岡","番匠　俊行","〒451-0043","愛知県名古屋市西区新道2-13-17　NTT菊井ビル5階","㈱NTTフィールドテクノ　サービスマネジメント部　フィールドオペレーション部門","設備貸借管理センタ　東海ユニット　設備管理担当（名古屋）　添架グループ","052-533-5955","㈱NTTフィールドテクノ　サービスマネジメント部","フィールドオペレーション部門　設備貸借管理センタ","東海ユニット長","㈱ＮＴＴフィールドテクノ","サービスマネジメント部　フィールドオペレーション部門","設備貸借管理センタ　東海ユニット　設備管理担当（名古屋）"]
["岐阜県","岐阜","立木　祥平","〒451-0043","愛知県名古屋市西区新道2-13-17　NTT菊井ビル5階","㈱NTTフィールドテクノ　サービスマネジメント部　フィールドオペレーション部門","設備貸借管理センタ　東海ユニット　設備管理担当（名古屋）　添架グループ","052-533-5955","㈱NTTフィールドテクノ　サービスマネジメント部","フィールドオペレーション部門　設備貸借管理センタ","東海ユニット長","㈱ＮＴＴフィールドテクノ","サービスマネジメント部　フィールドオペレーション部門","設備貸借管理センタ　東海ユニット　設備管理担当（名古屋）"]
["三重県","三重","佐藤　麻希","〒451-0043","愛知県名古屋市西区新道2-13-17　NTT菊井ビル5階","㈱NTTフィールドテクノ　サービスマネジメント部　フィールドオペレーション部門","設備貸借管理センタ　東海ユニット　設備管理担当（名古屋）　添架グループ","052-533-5955","㈱NTTフィールドテクノ　サービスマネジメント部","フィールドオペレーション部門　設備貸借管理センタ","東海ユニット長","㈱ＮＴＴフィールドテクノ","サービスマネジメント部　フィールドオペレーション部門","設備貸借管理センタ　東海ユニット　設備管理担当（名古屋）"]
["石川県","北陸","小杉　佳世子","〒920-0912","石川県金沢市大手町15-40　NTT大手町ビル1棟5階","㈱NTTフィールドテクノ　サービスマネジメント部　フィールドオペレーション部門","設備貸借管理センタ　北陸ユニット　設備管理担当　添架グループ","076-282-9861","㈱NTTフィールドテクノ　サービスマネジメント部","フィールドオペレーション部門　設備貸借管理センタ","北陸ユニット　設備管理担当課長","㈱ＮＴＴフィールドテクノ","サービスマネジメント部　フィールドオペレーション部門","設備貸借管理センタ　北陸ユニット　設備管理担当"]
["富山県","富山","東山　真也","〒920-0912","石川県金沢市大手町15-40　NTT大手町ビル1棟5階","㈱NTTフィールドテクノ　サービスマネジメント部　フィールドオペレーション部門","設備貸借管理センタ　北陸ユニット　設備管理担当　添架グループ","076-282-9861","㈱NTTフィールドテクノ　サービスマネジメント部","フィールドオペレーション部門　設備貸借管理センタ","北陸ユニット　設備管理担当課長","㈱ＮＴＴフィールドテクノ","サービスマネジメント部　フィールドオペレーション部門","設備貸借管理センタ　北陸ユニット　設備管理担当"]
["福井県","福井","北大宅　勉","〒920-0912","石川県金沢市大手町15-40　NTT大手町ビル1棟5階","㈱NTTフィールドテクノ　サービスマネジメント部　フィールドオペレーション部門","設備貸借管理センタ　北陸ユニット　設備管理担当　添架グループ","076-282-9861","㈱NTTフィールドテクノ　サービスマネジメント部","フィールドオペレーション部門　設備貸借管理センタ","北陸ユニット　設備管理担当課長","㈱ＮＴＴフィールドテクノ","サービスマネジメント部　フィールドオペレーション部門","設備貸借管理センタ　北陸ユニット　設備管理担当"]
["広島県","中国","桑原　史憲","〒731-0123","広島県広島市安佐南区古市2-28-27　NTT古市ビル2階","㈱NTTフィールドテクノ　サービスマネジメント部　フィールドオペレーション部門","設備貸借管理センタ　中国ユニット　設備管理担当（広島）　添架グループ","082-554-0088","㈱NTTフィールドテクノ　サービスマネジメント部","フィールドオペレーション部門　設備貸借管理センタ","中国ユニット長","㈱ＮＴＴフィールドテクノ","サービスマネジメント部　フィールドオペレーション部門","設備貸借管理センタ　中国ユニット　設備管理担当（広島）"]
["島根県","島根","福島　悦子","〒731-0123","広島県広島市安佐南区古市2-28-27　NTT古市ビル2階","㈱NTTフィールドテクノ　サービスマネジメント部　フィールドオペレーション部門","設備貸借管理センタ　中国ユニット　設備管理担当（広島）　添架グループ","082-554-0088","㈱NTTフィールドテクノ　サービスマネジメント部","フィールドオペレーション部門　設備貸借管理センタ","中国ユニット長","㈱ＮＴＴフィールドテクノ","サービスマネジメント部　フィールドオペレーション部門","設備貸借管理センタ　中国ユニット　設備管理担当（広島）"]
["岡山県","岡山","井上　喜徳","〒731-0123","広島県広島市安佐南区古市2-28-27　NTT古市ビル2階","㈱NTTフィールドテクノ　サービスマネジメント部　フィールドオペレーション部門","設備貸借管理センタ　中国ユニット　設備管理担当（広島）　添架グループ","082-554-0088","㈱NTTフィールドテクノ　サービスマネジメント部","フィールドオペレーション部門　設備貸借管理センタ","中国ユニット長","㈱ＮＴＴフィールドテクノ","サービスマネジメント部　フィールドオペレーション部門","設備貸借管理センタ　中国ユニット　設備管理担当（広島）"]
["鳥取県","鳥取","小川原　秀哉","〒731-0123","広島県広島市安佐南区古市2-28-27　NTT古市ビル2階","㈱NTTフィールドテクノ　サービスマネジメント部　フィールドオペレーション部門","設備貸借管理センタ　中国ユニット　設備管理担当（広島）　添架グループ","082-554-0088","㈱NTTフィールドテクノ　サービスマネジメント部","フィールドオペレーション部門　設備貸借管理センタ","中国ユニット長","㈱ＮＴＴフィールドテクノ","サービスマネジメント部　フィールドオペレーション部門","設備貸借管理センタ　中国ユニット　設備管理担当（広島）"]
["山口県","山口","西　一仁","〒731-0123","広島県広島市安佐南区古市2-28-27　NTT古市ビル2階","㈱NTTフィールドテクノ　サービスマネジメント部　フィールドオペレーション部門","設備貸借管理センタ　中国ユニット　設備管理担当（広島）　添架グループ","082-554-0088","㈱NTTフィールドテクノ　サービスマネジメント部","フィールドオペレーション部門　設備貸借管理センタ","中国ユニット長","㈱ＮＴＴフィールドテクノ","サービスマネジメント部　フィールドオペレーション部門","設備貸借管理センタ　中国ユニット　設備管理担当（広島）"]
["愛媛県","四国","鈴木　裕二郎","〒790-0061","愛媛県松山市南江戸町1283-1　NTT松山研修センタC棟2階","㈱NTTフィールドテクノ　サービスマネジメント部　フィールドオペレーション部門","設備貸借管理センタ　四国ユニット　設備管理担当　添架グループ","089-909-6231","㈱NTTフィールドテクノ　サービスマネジメント部","フィールドオペレーション部門　設備貸借管理センタ","四国ユニット長","㈱ＮＴＴフィールドテクノ","サービスマネジメント部　フィールドオペレーション部門","設備貸借管理センタ　四国ユニット　設備管理担当"]
["香川県","香川","徳永　久雄","〒790-0061","愛媛県松山市南江戸町1283-1　NTT松山研修センタC棟2階","㈱NTTフィールドテクノ　サービスマネジメント部　フィールドオペレーション部門","設備貸借管理センタ　四国ユニット　設備管理担当　添架グループ","089-909-6231","㈱NTTフィールドテクノ　サービスマネジメント部","フィールドオペレーション部門　設備貸借管理センタ","四国ユニット長","㈱ＮＴＴフィールドテクノ","サービスマネジメント部　フィールドオペレーション部門","設備貸借管理センタ　四国ユニット　設備管理担当"]
["徳島県","徳島","加藤　拓","〒790-0061","愛媛県松山市南江戸町1283-1　NTT松山研修センタC棟2階","㈱NTTフィールドテクノ　サービスマネジメント部　フィールドオペレーション部門","設備貸借管理センタ　四国ユニット　設備管理担当　添架グループ","089-909-6231","㈱NTTフィールドテクノ　サービスマネジメント部","フィールドオペレーション部門　設備貸借管理センタ","四国ユニット長","㈱ＮＴＴフィールドテクノ","サービスマネジメント部　フィールドオペレーション部門","設備貸借管理センタ　四国ユニット　設備管理担当"]
["高知県","高知","斎藤　幸生","〒790-0061","愛媛県松山市南江戸町1283-1　NTT松山研修センタC棟2階","㈱NTTフィールドテクノ　サービスマネジメント部　フィールドオペレーション部門","設備貸借管理センタ　四国ユニット　設備管理担当　添架グループ","089-909-6231","㈱NTTフィールドテクノ　サービスマネジメント部","フィールドオペレーション部門　設備貸借管理センタ","四国ユニット長","㈱ＮＴＴフィールドテクノ","サービスマネジメント部　フィールドオペレーション部門","設備貸借管理センタ　四国ユニット　設備管理担当"]
["福岡県","九州","右田　聖秀","〒815-0035","福岡県福岡市南区向野1-17-25　NTT筑紫ヶ丘ビル3階","㈱NTTフィールドテクノ　サービスマネジメント部　フィールドオペレーション部門","設備貸借管理センタ　九州ユニット　設備管理担当（福岡）　添架グループ","092-555-2648","㈱NTTフィールドテクノ　サービスマネジメント部","フィールドオペレーション部門　設備貸借管理センタ","九州ユニット長","㈱ＮＴＴフィールドテクノ","サービスマネジメント部　フィールドオペレーション部門","設備貸借管理センタ　九州ユニット　設備管理担当（福岡）"]
["北九州","九州","右田　聖秀","〒815-0035","福岡県福岡市南区向野1-17-25　NTT筑紫ヶ丘ビル3階","㈱NTTフィールドテクノ　サービスマネジメント部　フィールドオペレーション部門","設備貸借管理センタ　九州ユニット　設備管理担当（福岡）　添架グループ","092-555-2648","㈱NTTフィールドテクノ　サービスマネジメント部","フィールドオペレーション部門　設備貸借管理センタ","九州ユニット長","㈱ＮＴＴフィールドテクノ","サービスマネジメント部　フィールドオペレーション部門","設備貸借管理センタ　九州ユニット　設備管理担当（福岡）"]
["佐賀県","佐賀","國本　裕久","〒815-0035","福岡県福岡市南区向野1-17-25　NTT筑紫ヶ丘ビル3階","㈱NTTフィールドテクノ　サービスマネジメント部　フィールドオペレーション部門","設備貸借管理センタ　九州ユニット　設備管理担当（福岡）　添架グループ","092-555-2648","㈱NTTフィールドテクノ　サービスマネジメント部","フィールドオペレーション部門　設備貸借管理センタ","九州ユニット長","㈱ＮＴＴフィールドテクノ","サービスマネジメント部　フィールドオペレーション部門","設備貸借管理センタ　九州ユニット　設備管理担当（福岡）"]
["長崎県","長崎","瀬戸口　浩","〒815-0035","福岡県福岡市南区向野1-17-25　NTT筑紫ヶ丘ビル3階","㈱NTTフィールドテクノ　サービスマネジメント部　フィールドオペレーション部門","設備貸借管理センタ　九州ユニット　設備管理担当（福岡）　添架グループ","092-555-2648","㈱NTTフィールドテクノ　サービスマネジメント部","フィールドオペレーション部門　設備貸借管理センタ","九州ユニット長","㈱ＮＴＴフィールドテクノ","サービスマネジメント部　フィールドオペレーション部門","設備貸借管理センタ　九州ユニット　設備管理担当（福岡）"]
["熊本県","熊本","朝倉　順次","〒815-0035","福岡県福岡市南区向野1-17-25　NTT筑紫ヶ丘ビル3階","㈱NTTフィールドテクノ　サービスマネジメント部　フィールドオペレーション部門","設備貸借管理センタ　九州ユニット　設備管理担当（福岡）　添架グループ","092-555-2648","㈱NTTフィールドテクノ　サービスマネジメント部","フィールドオペレーション部門　設備貸借管理センタ","九州ユニット長","㈱ＮＴＴフィールドテクノ","サービスマネジメント部　フィールドオペレーション部門","設備貸借管理センタ　九州ユニット　設備管理担当（福岡）"]
["大分県","大分","谷　奈生絵","〒815-0035","福岡県福岡市南区向野1-17-25　NTT筑紫ヶ丘ビル3階","㈱NTTフィールドテクノ　サービスマネジメント部　フィールドオペレーション部門","設備貸借管理センタ　九州ユニット　設備管理担当（福岡）　添架グループ","092-555-2648","㈱NTTフィールドテクノ　サービスマネジメント部","フィールドオペレーション部門　設備貸借管理センタ","九州ユニット長","㈱ＮＴＴフィールドテクノ","サービスマネジメント部　フィールドオペレーション部門","設備貸借管理センタ　九州ユニット　設備管理担当（福岡）"]
["鹿児島県","鹿児島","瓜生　昌史","〒815-0035","福岡県福岡市南区向野1-17-25　NTT筑紫ヶ丘ビル3階","㈱NTTフィールドテクノ　サービスマネジメント部　フィールドオペレーション部門","設備貸借管理センタ　九州ユニット　設備管理担当（福岡）　添架グループ","092-555-2648","㈱NTTフィールドテクノ　サービスマネジメント部","フィールドオペレーション部門　設備貸借管理センタ","九州ユニット長","㈱ＮＴＴフィールドテクノ","サービスマネジメント部　フィールドオペレーション部門","設備貸借管理センタ　九州ユニット　設備管理担当（福岡）"]
["宮崎県","宮崎","横奥　宏明","〒815-0035","福岡県福岡市南区向野1-17-25　NTT筑紫ヶ丘ビル3階","㈱NTTフィールドテクノ　サービスマネジメント部　フィールドオペレーション部門","設備貸借管理センタ　九州ユニット　設備管理担当（福岡）　添架グループ","092-555-2648","㈱NTTフィールドテクノ　サービスマネジメント部","フィールドオペレーション部門　設備貸借管理センタ","九州ユニット長","㈱ＮＴＴフィールドテクノ","サービスマネジメント部　フィールドオペレーション部門","設備貸借管理センタ　九州ユニット　設備管理担当（福岡）"]
["沖縄県","沖縄","古江　健太郎","〒815-0035","福岡県福岡市南区向野1-17-25　NTT筑紫ヶ丘ビル3階","㈱NTTフィールドテクノ　サービスマネジメント部　フィールドオペレーション部門","設備貸借管理センタ　九州ユニット　設備管理担当（福岡）　添架グループ","092-555-2648","㈱NTTフィールドテクノ　サービスマネジメント部","フィールドオペレーション部門　設備貸借管理センタ","九州ユニット長","㈱ＮＴＴフィールドテクノ","サービスマネジメント部　フィールドオペレーション部門","設備貸借管理センタ　九州ユニット　設備管理担当（福岡）"]
[]
[]
[null,null,null,null,null,"※注意※その他の情報とケーブル、無線基地局、防犯カメラの情報は違います"]

{"sheet":"List","index":1,"n_rows":8,"n_cols":3,"rows_kept":8,"cut":false,"hidden":true,"merged":[]}
["新規　添架種別","新-様式16-1　道路占用許可\n私有地の同意","新-様式16-2　単独柱・\n共架柱の別"]
["防犯灯","調整済み","単独柱"]
["街路灯",null,"共架柱"]
["道路反射鏡（カーブミラー）"]
["交通標識"]
["交通信号機"]
["道路標識"]
["その他"]

{"sheet":"概要","index":2,"n_rows":34,"n_cols":49,"rows_kept":34,"cut":false,"hidden":true,"merged":[[31,2,31,6],[31,7,31,23],[31,24,31,40],[26,24,26,40],[27,24,27,40],[28,24,28,40],[22,24,22,40],[23,24,23,40],[24,24,24,40],[25,24,25,40],[23,2,23,6],[23,7,23,23],[24,2,24,6],[24,7,24,23],[25,2,25,6],[25,7,25,23],[22,2,22,6],[22,7,22,23],[18,33,18,35],[18,36,18,38],[18,39,18,41],[18,42,18,44],[17,39,17,41],[17,42,17,44],[29,24,29,40],[30,24,30,40],[28,2,28,6],[28,7,28,23],[29,2,29,6],[29,7,29,23],[26,2,26,6],[26,7,26,23],[27,2,27,6],[27,7,27,23],[30,2,30,6],[30,7,30,23],[18,45,18,47],[11,48,11,50],[12,48,12,50],[13,48,13,50],[14,48,14,50],[15,48,15,50],[16,48,16,50],[17,48,17,50],[18,48,18,50],[17,45,17,47],[10,1,11,1],[10,2,11,6],[10,7,11,23],[18,24,18,26],[18,27,18,29],[18,30,18,32],[16,45,16,47],[17,24,17,26],[17,27,17,29],[17,30,17,32],[17,33,17,35],[17,36,17,38],[16,33,16,35],[16,36,16,38],[16,39,16,41],[16,42,16,44],[16,24,16,26],[16,27,16,29],[16,30,16,32],[15,24,15,26],[15,27,15,29],[15,30,15,32],[15,33,15,35],[15,36,15,38],[14,24,14,26],[14,27,14,29],[14,30,14,32],[14,45,14,47],[14,33,14,35],[14,36,14,38],[14,39,14,41],[14,42,14,44],[15,39,15,41],[15,42,15,44],[15,45,15,47],[13,33,13,35],[13,36,13,38],[12,42,12,44],[12,45,12,47],[13,39,13,41],[13,42,13,44],[13,45,13,47],[13,24,13,26],[13,27,13,29],[13,30,13,32],[10,24,10,50],[12,2,15,6],[16,2,18,6],[12,7,12,23],[18,7,18,23],[14,7,14,23],[13,7,13,23],[17,7,17,23],[15,7,15,23],[16,7,16,23],[11,45,11,47],[12,24,12,26],[12,27,12,29],[12,30,12,32],[12,33,12,35],[12,36,12,38],[11,33,11,35],[11,36,11,38],[11,39,11,41],[11,42,11,44],[11,24,11,26],[11,27,11,29],[11,30,11,32],[12,39,12,41]]}
["１．本ツールについて"]
[null,"本ツールは、各種添架申請を行う際に必要な申請書の作成を支援するツールです。"]
[null,"各シーンに必要な様式の申請書を作成することが出来ます。"]
[]
["２．申請の対象"]
[null,"添架申請：その他申請（防犯灯・街路灯・道路反射鏡（カーブミラー）・標識等）"]
[]
["３．申請書の種別と様式"]
[null,"本ツールで作成出来る申請書の種別と、申請に必要な様式は下記の通りです。"]
[null,"各シーン毎に申請書を作成し、NTT西日本に提出、申請して下さい。"]
[null,"№","申請種別",null,null,null,null,"各シーン",null,null,null,null,null,null,null,null,null,null,null,null,null,null,null,null,"作成する申請書の様式"]
[null,null,null,null,null,null,null,null,null,null,null,null,null,null,null,null,null,null,null,null,null,null,null,null,"様式14",null,null,"様式16",null,null,"様式16-1",null,null,"様式16-2",null,null,"様式16-3",null,null,"様式16-4",null,null,"様式16-5",null,null,"構造図",null,null,"チェックシート"]
[null,1,"新規申請",null,null,null,null,"・新規工事の申請",null,null,null,null,null,null,null,null,null,null,null,null,null,null,null,null,"－",null,null,"〇",null,null,"〇",null,null,"〇",null,null,"－",null,null,"－",null,null,"－",null,null,"〇",null,null,"〇"]
[null,2,null,null,null,null,null,"・工事開始前の申請",null,null,null,null,null,null,null,null,null,null,null,null,null,null,null,null,"－",null,null,"－",null,null,"－",null,null,"－",null,null,"－",null,null,"－",null,null,"－",null,null,"－",null,null,"－"]
[null,3,null,null,null,null,null,"・工事完了後の申請",null,null,null,null,null,null,null,null,null,null,null,null,null,null,null,null,"－",null,null,"－",null,null,"－",null,null,"〇",null,null,"〇",null,null,"－",null,null,"－",null,null,"－",null,null,"〇"]
[null,4,null,null,null,null,null,"・名義変更時字の申請",null,null,null,null,null,null,null,null,null,null,null,null,null,null,null,null,"－",null,null,"－",null,null,"〇",null,null,"－",null,null,"－",null,null,"－",null,null,"〇",null,null,"－",null,null,"〇"]
[null,5,"廃止・解約申請",null,null,null,null,"・廃止・解約工事の申請",null,null,null,null,null,null,null,null,null,null,null,null,null,null,null,null,"〇",null,null,"－",null,null,"〇",null,null,"－",null,null,"－",null,null,"〇",null,null,"－",null,null,"－",null,null,"〇"]
[null,6,null,null,null,null,null,"・工事開始前の申請",null,null,null,null,null,null,null,null,null,null,null,null,null,null,null,null,"－",null,null,"－",null,null,"－",null,null,"－",null,null,"－",null,null,"－",null,null,"－",null,null,"－",null,null,"－"]
[null,7,null,null,null,null,null,"・工事完了後の申請",null,null,null,null,null,null,null,null,null,null,null,null,null,null,null,null,"〇",null,null,"－",null,null,"－",null,null,"－",null,null,"〇",null,null,"－",null,null,"－",null,null,"－",null,null,"〇"]
[null,null,null,null,null,null,null,null,null,null,null,null,null,null,null,null,null,null,null,null,null,null,null,null,"〇：必要、－：不要"]
["４．様式一覧"]
[null,"様式番号と書類名称は下記の通りです。"]
[null,"№","様式番号",null,null,null,null,"書類名称",null,null,null,null,null,null,null,null,null,null,null,null,null,null,null,null,"備考"]
[null,1," 様式14",null,null,null,null," 写真"]
[null,2," 様式16",null,null,null,null," 申請書兼承諾書",null,null,null,null,null,null,null,null,null,null,null,null,null,null,null,null,"※2部印刷"]
[null,3," 様式16-1",null,null,null,null," 添架設備一覧表",null,null,null,null,null,null,null,null,null,null,null,null,null,null,null,null,"※2部印刷"]
[null,4," 様式16-2",null,null,null,null," 添架協議票兼完成状況票"]
[null,5," 様式16-3",null,null,null,null," 添架工事着工完了届"]
[null,6," 様式16-4",null,null,null,null," 添架申込解約申請書"]
[null,7," 様式16-5",null,null,null,null," 添架申込名義変更届"]
[null,8," 構造図",null,null,null,null," 構造図"]
[null,9," チェックシート",null,null,null,null," チェックシート"]
[]
["END"]

{"sheet":"新-様式16-2コピー元","index":3,"n_rows":21,"n_cols":30,"rows_kept":21,"cut":false,"hidden":true,"merged":[[7,29,7,42],[3,0,3,42],[4,0,4,42],[5,0,5,42],[6,4,6,13],[6,16,6,22],[6,24,6,33],[6,34,6,42],[7,2,7,6],[7,7,7,15],[7,16,7,19],[7,20,7,25],[7,26,7,28],[8,0,8,42],[9,0,9,3],[9,4,9,10],[9,12,9,14],[9,16,9,18],[9,20,9,28],[9,29,9,42],[10,0,10,28],[10,29,10,42],[11,0,11,28],[11,29,12,42],[12,0,14,18],[13,22,13,26],[13,29,13,42],[14,29,17,42],[19,0,19,42],[40,22,41,24],[14,44,14,45],[15,0,15,28],[16,0,16,28],[17,1,17,25],[17,26,17,28],[18,0,18,42]]}
[]
[]
[]
["様式１６－２"]
["添　架　協　議　票　兼　完　成　状　況　票"]
[]
["協議・完成の別　",null,null,"【","協議　・　完成",null,null,null,null,null,null,null,null,null,"】"]
["NO",1,"添架希望\n電柱名・番号 ",null,null,null,null,null,null,null,null,null,null,null,null,null,"単独柱・\n共架柱の別",null,null,null,"単独柱",null,null,null,null,null,"設置\n場所"]
[]
["１．調査年月日　　　　　　　　　",null,null,null,null,null,null,null,null,null,null,"年",null,null,null,"月",null,null,null,"日",null,null,null,null,null,null,null,null,null,"３．添架位置図（上から見た図）"]
["２．添架位置図　",null,null,null,null,null,null,null,null,null,null,null,null,null,null,null,null,null,null,null,null,null,null,null,null,null,null,null,null,"※添架設備設置方向を記入"]
["※添架予定ポイント（添架完了ポイント）を明示し、\n　地上高及び各電線類、工作物との離隔を測定し記入すること。"]
[]
[null,null,null,null,null,null,null,null,null,null,null,null,null,null,null,null,null,null,null,null,null,null,"設置の高さ：　　ｍ",null,null,null,null,null,null,"４．特記事項"]
[]
["※添架希望ポイントを赤で塗りつぶす"]
["※腕金設置位置を赤で塗りつぶす"]
[]
["※添架工事完成時に、協議の際に申告のあった添架ポイント等に変更がある場合は、"]
["　添架位置図を修正し、その理由を特記事項へ記入すること。"]
["４．申請電柱状況写真　"]

{"sheet":"新-様式16-2②コピー元","index":4,"n_rows":21,"n_cols":30,"rows_kept":21,"cut":false,"hidden":true,"merged":[[7,29,7,42],[3,0,3,42],[4,0,4,42],[5,0,5,42],[6,4,6,13],[6,16,6,22],[6,24,6,33],[6,34,6,42],[7,2,7,6],[7,7,7,15],[7,16,7,19],[7,20,7,25],[7,26,7,28],[8,0,8,42],[9,0,9,3],[9,4,9,10],[9,12,9,14],[9,16,9,18],[9,20,9,28],[9,29,9,42],[10,0,10,28],[10,29,10,42],[11,0,11,28],[11,29,12,42],[12,0,14,18],[13,22,13,26],[13,29,13,42],[14,29,17,42],[19,0,19,42],[40,22,41,24],[14,44,14,45],[15,0,15,28],[16,0,16,28],[17,1,17,25],[17,26,17,28],[18,0,18,42]]}
[]
[]
[]
["様式１６－２"]
["添　架　協　議　票　兼　完　成　状　況　票"]
[]
["協議・完成の別　",null,null,"【","協議　・　完成",null,null,null,null,null,null,null,null,null,"】"]
["NO",1,"添架希望\n電柱名・番号 ",null,null,null,null,null,null,null,null,null,null,null,null,null,"単独柱・\n共架柱の別",null,null,null,"単独柱",null,null,null,null,null,"設置\n場所"]
[]
["１．調査年月日　　　　　　　　　",null,null,null,null,null,null,null,null,null,null,"年",null,null,null,"月",null,null,null,"日",null,null,null,null,null,null,null,null,null,"３．添架位置図（上から見た図）"]
["２．添架位置図　",null,null,null,null,null,null,null,null,null,null,null,null,null,null,null,null,null,null,null,null,null,null,null,null,null,null,null,null,"※添架設備設置方向を記入"]
["※添架予定ポイント（添架完了ポイント）を明示し、\n　地上高及び各電線類、工作物との離隔を測定し記入すること。"]
[]
[null,null,null,null,null,null,null,null,null,null,null,null,null,null,null,null,null,null,null,null,null,null,"設置の高さ：　　ｍ",null,null,null,null,null,null,"４．特記事項"]
[]
["※添架希望ポイントを赤で塗りつぶす"]
["※腕金設置位置を赤で塗りつぶす"]
[]
["※添架工事完成時に、協議の際に申告のあった添架ポイント等に変更がある場合は、"]
["　添架位置図を修正し、その理由を特記事項へ記入すること。"]
["４．申請電柱状況写真　"]

{"sheet":"廃解-様式14コピー元","index":5,"n_rows":38,"n_cols":12,"rows_kept":38,"cut":false,"hidden":true,"merged":[[7,1,7,2],[7,4,7,5],[10,0,34,5],[10,6,34,11],[37,0,61,5],[37,6,61,11]]}
[]
[]
[]
[null,null,null,null,null,null,null,null,null,null,null,"様式１４"]
[null,null,null,null,null,null,null,null,null,"※指定の様式でなくても可"]
["写真"]
["申込書添付書類（電柱）　"]
["線路名",null,null,"電柱番号"]
[]
["（工事前電柱全体写真）",null,null,null,null,null,"(工事前電柱札写真）"]
["・カラー写真を掲載下さい\n・添架ポイントがはっきり判るように撮影\n・電柱地際から電柱頭部まではっきり判るように撮影",null,null,null,null,null,"工事前のＮＴＴ柱番号が見えるように撮影して下さい"]
[]
[]
[]
[]
[]
[]
[]
[]
[]
[]
[]
[]
[]
[]
[]
[]
[]
[]
[]
[]
[]
[]
[]
[]
[]
["（工事後電柱全体写真）",null,null,null,null,null,"(工事後電柱札写真）"]
["・カラー写真を掲載下さい\n・添架ポイントがはっきり判るように撮影\n・電柱地際から電柱頭部まではっきり判るように撮影",null,null,null,null,null,"工事後のＮＴＴ柱番号が見えるように撮影して下さい"]

{"sheet":"廃解-様式14②コピー元","index":6,"n_rows":38,"n_cols":12,"rows_kept":38,"cut":false,"hidden":true,"merged":[[7,1,7,2],[7,4,7,5],[10,0,34,5],[10,6,34,11],[37,0,61,5],[37,6,61,11]]}
[]
[]
[]
[null,null,null,null,null,null,null,null,null,null,null,"様式１４"]
[null,null,null,null,null,null,null,null,null,"※指定の様式でなくても可"]
["写真"]
["申込書添付書類（電柱）　"]
["線路名",null,null,"電柱番号"]
[]
["（工事前電柱全体写真）",null,null,null,null,null,"(工事前電柱札写真）"]
["・カラー写真を掲載下さい\n・添架ポイントがはっきり判るように撮影\n・電柱地際から電柱頭部まではっきり判るように撮影",null,null,null,null,null,"工事前のＮＴＴ柱番号が見えるように撮影して下さい"]
[]
[]
[]
[]
[]
[]
[]
[]
[]
[]
[]
[]
[]
[]
[]
[]
[]
[]
[]
[]
[]
[]
[]
[]
[]
["（工事後電柱全体写真）",null,null,null,null,null,"(工事後電柱札写真）"]
["・カラー写真を掲載下さい\n・添架ポイントがはっきり判るように撮影\n・電柱地際から電柱頭部まではっきり判るように撮影",null,null,null,null,null,"工事後のＮＴＴ柱番号が見えるように撮影して下さい"]

{"sheet":"TOP","index":7,"n_rows":26,"n_cols":29,"rows_kept":26,"cut":false,"hidden":false,"merged":[[25,28,26,31],[1,9,3,50],[23,20,24,38]]}
[]
[null,"tenga",null,null,null,null,null,null,null,"添架申請書作成支援ツール（その他）"]
[]
[]
[]
[]
[]
[]
[]
[]
[]
[]
[]
[]
[]
[]
[]
[]
[]
[]
[]
[]
[]
[null,null,null,null,null,null,null,null,null,null,null,null,null,null,null,null,null,null,null,null,"（防犯灯・街路灯・道路反射鏡（カーブミラー）・標識等）"]
[]
[null,null,null,null,null,null,null,null,null,null,null,null,null,null,null,null,null,null,null,null,null,null,null,null,null,null,null,null,"Ver 1.0.0"]

{"sheet":"新規","index":8,"n_rows":48,"n_cols":42,"rows_kept":48,"cut":false,"hidden":false,"merged":[[3,7,5,38],[7,2,8,3],[7,4,8,18],[7,19,8,45],[9,2,10,3],[9,19,10,25],[9,26,10,36],[9,37,10,40],[9,41,10,45],[9,4,10,13],[9,14,10,18],[11,2,11,3],[11,19,11,45],[12,2,12,3],[12,19,12,45],[11,14,11,18],[12,14,12,18],[11,4,11,13],[12,4,12,13],[27,2,27,3],[27,9,27,28],[27,29,27,33],[27,34,27,45],[24,2,25,3],[24,4,24,28],[24,29,25,33],[24,34,25,45],[25,4,25,8],[25,9,25,28],[26,2,26,3],[26,4,26,8],[26,9,26,28],[26,29,26,33],[26,34,26,45],[34,2,36,45],[28,2,28,3],[28,4,28,8],[28,9,28,28],[28,29,28,33],[28,34,28,45],[29,2,29,3],[29,4,29,8],[29,9,29,28],[29,29,29,33],[29,34,29,45],[30,2,30,3],[30,4,30,8],[30,9,30,28],[30,29,30,33],[30,34,30,45],[41,2,42,3],[41,4,41,28],[41,29,42,33],[41,34,42,45],[42,4,42,8],[42,9,42,28],[44,2,44,3],[44,4,44,8],[44,9,44,28],[44,29,44,33],[44,34,44,45],[43,2,43,3],[43,4,43,8],[43,9,43,28],[43,29,43,33],[43,34,43,45],[45,2,45,3],[45,4,45,8],[45,9,45,28],[45,29,45,33],[45,34,45,45]]}
[]
[]
[]
[null,null,null,null,null,null,null,"「新規申請」初期画面"]
[]
[]
[null,null,"１．基本情報の登録（各様式に反映されます）"]
[null,null,"№",null,"項目名",null,null,null,null,null,null,null,null,null,null,null,null,null,null,"入力項目"]
[]
[null,null,1,null," 地域",null,null,null,null,null,null,null,null,null,"（必須入力）",null,null,null,null,null,null,null,null,null,null,null,"NTT西日本申請先：",null,null,null,null,null,null,null,null,null,null,{"$f":"IF(新規!T10=\"\",\"\",VLOOKUP(新規!T10,県域情報!A2:B32,2,FALSE))","v":""},null,null,null,"支店 宛て"]
[]
[null,null,2,null," 添架種別",null,null,null,null,null,null,null,null,null,"（必須入力）"]
[null,null,3,null," ※添架種別がその他の場合",null,null,null,null,null,null,null,null,null,"（必須入力）",null,null,null,null,"aaa"]
[]
[]
[]
[]
[]
[]
[]
[]
[]
[]
[null,null,"２．新規工事の申請（本ツールで作成できる様式）",null,null,null,null,null,null,null,null,null,null,null,null,null,null,null,null,null,null,null,null,null,null,null,null,null,null,"　　","　 「●」をクリックして下さい。"]
[null,null,"№",null,"必要書類",null,null,null,null,null,null,null,null,null,null,null,null,null,null,null,null,null,null,null,null,null,null,null,null,"各シートへ\n移動します。",null,null,null,null,"備考"]
[null,null,null,null,"様式番号",null,null,null,null,"書類名称"]
[null,null,1,null," 様式16",null,null,null,null,"　申請書兼承諾書",null,null,null,null,null,null,null,null,null,null,null,null,null,null,null,null,null,null,null,"●",null,null,null,null,"両面で2部必要です。"]
[null,null,2,null," 様式16-1",null,null,null,null,"　添架設備一覧表",null,null,null,null,null,null,null,null,null,null,null,null,null,null,null,null,null,null,null,"●",null,null,null,null,"様式16シートに含まれています。"]
[null,null,3,null," 様式16-2",null,null,null,null,"　添架協議票兼完成状況票",null,null,null,null,null,null,null,null,null,null,null,null,null,null,null,null,null,null,null,"●",null,null,null,null,"※シート複製可能"]
[null,null,4,null," 構造図",null,null,null,null,"　防犯灯等設置設備構造図",null,null,null,null,null,null,null,null,null,null,null,null,null,null,null,null,null,null,null,"●"]
[null,null,5,null," チェックシート",null,null,null,null," （新規申請）郵送前チェックシート",null,null,null,null,null,null,null,null,null,null,null,null,null,null,null,null,null,null,null,"●"]
[]
[]
[null,null,"３．工事開始前　　　　　　　　　　　　　　　　　　　　　　　　　　　　　　"]
[null,null,"不　要"]
[]
[]
[]
[]
[]
[null,null,"４．工事完了後　"]
[null,null,"№",null,"必要書類",null,null,null,null,null,null,null,null,null,null,null,null,null,null,null,null,null,null,null,null,null,null,null,null,"各シートへ\n移動します。",null,null,null,null,"入力状態"]
[null,null,null,null,"様式番号",null,null,null,null,"書類名称"]
[null,null,1,null," 様式16-3",null,null,null,null,"　添架工事着工完了届",null,null,null,null,null,null,null,null,null,null,null,null,null,null,null,null,null,null,null,"●",null,null,null,null,"　"]
[null,null,2,null," 様式16-2",null,null,null,null,"　添架協議票兼完成状況票（写真）",null,null,null,null,null,null,null,null,null,null,null,null,null,null,null,null,null,null,null,"●",null,null,null,null,"※シート複製可能"]
[null,null,3,null," チェックシート",null,null,null,null," （新規申請・着工完了届）郵送前チェックシート",null,null,null,null,null,null,null,null,null,null,null,null,null,null,null,null,null,null,null,"●"]
[]
["END"]

{"sheet":"新-様式16","index":9,"n_rows":166,"n_cols":26,"rows_kept":166,"cut":false,"hidden":false,"merged":[[4,1,4,6],[4,7,4,16],[4,17,4,25],[5,3,5,6],[5,17,5,18],[5,20,5,21],[5,23,5,24],[16,0,17,2],[16,4,17,20],[19,0,19,2],[19,4,19,20],[20,0,21,2],[20,4,21,18],[20,19,21,19],[20,20,21,20],[6,0,6,9],[7,0,7,1],[7,2,7,3],[8,0,8,9],[9,0,9,9],[10,0,10,9],[20,21,21,22],[27,0,27,2],[27,4,27,20],[28,4,30,20],[29,0,30,2],[34,22,35,25],[35,0,36,2],[35,4,36,20],[36,22,41,25],[37,4,37,20],[38,0,38,2],[38,4,38,20],[39,0,40,2],[39,4,40,20],[45,0,49,3],[45,4,45,5],[45,6,45,15],[45,16,45,18],[45,19,45,26],[46,4,47,5],[50,9,51,9],[50,10,51,10],[46,6,47,15],[46,16,47,18],[46,19,47,26],[48,4,49,5],[48,6,49,15],[48,16,49,18],[48,19,49,26],[54,0,54,20],[54,21,54,26],[55,0,56,1],[55,2,56,9],[55,11,55,16],[55,17,55,18],[55,19,55,20],[56,11,56,21],[50,18,51,18],[50,19,51,19],[50,20,51,20],[50,21,51,22],[50,23,50,26],[52,0,52,25],[50,11,51,11],[50,12,51,12],[50,13,51,13],[50,14,51,14],[50,15,51,16],[50,17,51,17],[50,0,51,3],[50,4,50,5],[50,6,51,6],[50,7,51,8],[57,0,58,1],[57,2,58,9],[57,11,57,24],[58,11,58,24],[59,0,60,1],[59,2,60,3],[59,4,60,4],[59,5,60,5],[59,6,60,6],[59,7,60,7],[64,11,64,25],[65,11,65,25],[66,11,66,25],[67,11,67,25],[68,11,68,25],[69,0,69,26],[59,8,60,8],[59,9,60,9],[59,11,59,24],[62,6,62,8],[62,11,62,25],[63,6,63,8],[63,11,63,25],[75,1,75,25],[76,1,76,25],[77,1,77,25],[78,1,78,25],[79,1,79,25],[80,1,80,25],[71,0,72,0],[71,1,71,2],[71,3,71,25],[72,1,72,25],[73,1,73,25],[74,1,74,25],[87,1,87,25],[88,1,88,25],[89,1,89,25],[90,1,90,25],[91,1,91,25],[92,1,92,25],[81,1,81,25],[82,1,82,25],[83,1,83,25],[84,1,84,25],[85,1,85,25],[86,1,86,25],[99,1,99,25],[100,1,100,25],[104,0,104,25],[106,1,106,25],[106,27,106,34],[107,1,107,25],[93,1,93,25],[94,1,94,25],[95,1,95,25],[96,1,96,25],[97,1,97,25],[98,1,98,25],[114,1,114,25],[115,1,115,25],[116,1,116,25],[117,1,117,25],[118,1,118,25],[119,1,119,25],[108,1,108,25],[109,1,109,25],[110,1,110,25],[111,1,111,25],[112,1,112,25],[113,1,113,25],[126,1,126,25],[127,1,127,25],[128,1,128,25],[129,1,129,25],[120,1,120,25],[121,1,121,25],[122,1,122,25],[123,1,123,25],[124,1,124,25],[125,1,125,25],[131,0,131,26],[133,0,134,26],[135,0,136,0],[135,1,135,8],[135,9,136,15],[135,16,136,17],[135,18,136,18],[164,9,164,15],[163,0,164,0],[163,1,164,5],[163,6,164,8],[163,16,164,17],[163,9,163,15],[135,24,135,26],[135,19,136,22],[161,9,161,15],[162,9,162,15],[159,9,159,15],[160,9,160,15],[157,9,157,15],[158,9,158,15],[155,9,155,15],[156,9,156,15],[155,0,156,0],[136,1,136,5],[136,6,136,8],[136,24,136,26],[137,0,138,0],[137,1,138,5],[137,6,138,8],[137,16,138,17],[137,18,138,18],[137,19,138,22],[137,24,138,26],[137,9,137,15],[138,9,138,15],[139,18,140,18],[139,19,140,22],[139,24,140,26],[141,0,142,0],[141,1,142,5],[141,6,142,8],[141,16,142,17],[141,18,142,18],[141,19,142,22],[141,24,142,26],[141,9,141,15],[142,9,142,15],[139,9,139,15],[140,9,140,15],[139,0,140,0],[139,1,140,5],[139,6,140,8],[139,16,140,17],[143,24,144,26],[145,0,146,0],[145,1,146,5],[145,6,146,8],[145,16,146,17],[145,18,146,18],[145,19,146,22],[145,24,146,26],[143,0,144,0],[143,1,144,5],[143,6,144,8],[143,16,144,17],[143,18,144,18],[143,19,144,22],[145,9,145,15],[146,9,146,15],[143,9,143,15],[144,9,144,15],[147,18,148,18],[147,19,148,22],[147,24,148,26],[149,0,150,0],[149,1,150,5],[149,6,150,8],[149,16,150,17],[149,18,150,18],[149,19,150,22],[149,24,150,26],[149,9,149,15],[150,9,150,15],[147,9,147,15],[148,9,148,15],[147,0,148,0],[147,1,148,5],[147,6,148,8],[147,16,148,17],[151,24,152,26],[153,0,154,0],[153,1,154,5],[153,6,154,8],[153,16,154,17],[153,18,154,18],[153,19,154,22],[153,24,154,26],[151,0,152,0],[151,1,152,5],[151,6,152,8],[151,16,152,17],[151,18,152,18],[151,19,152,22],[153,9,153,15],[154,9,154,15],[151,9,151,15],[152,9,152,15],[155,18,156,18],[155,19,156,22],[155,24,156,26],[157,0,158,0],[157,1,158,5],[157,6,158,8],[157,16,158,17],[157,18,158,18],[157,19,158,22],[157,24,158,26],[155,1,156,5],[155,6,156,8],[155,16,156,17],[159,24,160,26],[161,0,162,0],[161,1,162,5],[161,6,162,8],[161,16,162,17],[161,18,162,18],[161,19,162,22],[161,24,162,26],[159,0,160,0],[159,1,160,5],[159,6,160,8],[159,16,160,17],[159,18,160,18],[159,19,160,22],[166,9,166,15],[163,18,164,18],[163,19,164,22],[163,24,164,26],[165,0,166,0],[165,1,166,5],[165,6,166,8],[165,16,166,17],[165,18,166,18],[165,19,166,22],[165,24,166,26],[165,9,165,15]]}
[]
[]
[]
[null,null,null,null,null,null,null,null,null,null,null,null,null,null,null,null,null,null,null,null,null,null,null,null,"様式１６"]
[null,{"$f":"IF(新規!T12=\"\",\"\",新規!T12)","v":""},null,null,null,null,null,"申　請　書　兼　承　諾　書",null,null,null,null,null,null,null,null,null,"　　　　　　　　第　　　　　　　　　号"]
[null,null,null,null,null,null,null,"←その他の申請時に添架物自由記載",null,null,null,null,null,null,null,null,null,null,null,"年",null,null,"月",null,null,"日"]
["NTT西日本株式会社"]
[{"$f":"新規!AL10","v":""},null,"支店長",null,"殿"]
["　"]
["　"]
[""]
["承諾書返送先"]
[]
[null,null,"〒",null,null,null,null,"－"]
[]
[]
["承諾書返送先\n　　　住所"]
[]
[]
["　（フリガナ）"]
["承諾書返送先\n　　　氏名",null,null,null,null,null,null,null,null,null,null,null,null,null,null,null,null,null,null,"様"]
[]
[]
[null,"TEL："]
[]
[]
[null,"申請者"]
["　（フリガナ）"]
[]
["　　行政・警察・\n自治会・町会　名"]
[]
[]
[null,null,"〒",null,null,null,null,"－"]
[]
[null,null,null,null,null,null,null,null,null,null,null,null,null,null,null,null,null,null,null,null,null,null,"添架条件（別紙）\nに同意致します"]
["　申請者住所"]
[null,null,null,null,null,null,null,null,null,null,null,null,null,null,null,null,null,null,null,null,null,null,"サイン又は印"]
[]
["　（フリガナ）"]
["　申請者氏名"]
[]
[]
[null,"TEL："]
[]
[]
["工事施工責任者\n住所・氏名",null,null,null,"〒：",null,null,null,null,null,null,null,null,null,null,null,"担当者名："]
[null,null,null,null,"住所：",null,null,null,null,null,null,null,null,null,null,null,"ＴＥＬ："]
[]
[null,null,null,null,"会社名：",null,null,null,null,null,null,null,null,null,null,null,"日中連絡可能な\n電話番号\n(携帯等)："]
[]
["設置工事の\n実施予定期間",null,null,null,null,null,"自",null,null,"年",null,"月",null,"日","至",null,null,"年",null,"月",null,"日"]
[]
["　　添架設備名・添架数量は　添架設備一覧表　へ記載　"]
[]
["上記の添架について、添架条件（別紙）により承諾します"]
["承諾番号",null,"　　　　　　　　　　　第　　　　　　　　　　　　　　　号",null,null,null,null,null,null,null,null,"NTT西日本株式会社",null,null,null,null,null,{"$f":"A8","v":""},null,"支店長"]
[null,null,null,null,null,null,null,null,null,null,null,"（代理人）"]
["整理番号",null,null,null,null,null,null,null,null,null,null,{"$f":"IF(新規!$T$10=\"\",\"\",VLOOKUP(新規!$T$10,県域情報!$A$2:$N$32,9,FALSE))","v":""}]
[null,null,null,null,null,null,null,null,null,null,null,{"$f":"IF(新規!$T$10=\"\",\"\",VLOOKUP(新規!$T$10,県域情報!$A$2:$N$32,10,FALSE))","v":""}]
["承　諾　日",null,null,null,"年",null,"月",null,"日",null,null,{"$f":"IF(新規!$T$10=\"\",\"\",VLOOKUP(新規!$T$10,県域情報!$A$2:$N$32,11,FALSE))","v":""},null,null,null,null,null,null,null,null,null,null,null,null,null,"印"]
[]
[]
[null,null,null,null,null,null,"【問合せ先】",null,null,null,null,{"$f":"IF(新規!$T$10=\"\",\"\",VLOOKUP(新規!$T$10,県域情報!$A$2:$N$32,4,FALSE))","v":""}]
[null,null,null,null,null,null,null,null,null,null,null,{"$f":"IF(新規!$T$10=\"\",\"\",VLOOKUP(新規!$T$10,県域情報!$A$2:$N$32,5,FALSE))","v":""}]
[null,null,null,null,null,null,null,null,null,null,null,{"$f":"IF(新規!$T$10=\"\",\"\",VLOOKUP(新規!$T$10,県域情報!$A$2:$N$32,12,FALSE))","v":""}]
[null,null,null,null,null,null,null,null,null,null,null,{"$f":"IF(新規!$T$10=\"\",\"\",VLOOKUP(新規!$T$10,県域情報!$A$2:$N$32,13,FALSE))","v":""}]
[null,null,null,null,null,null,null,null,null,null,null,{"$f":"IF(新規!$T$10=\"\",\"\",VLOOKUP(新規!$T$10,県域情報!$A$2:$N$32,14,FALSE))","v":""}]
[null,null,null,null,null,null,null,null,null,null,null,{"$f":"IF(新規!$T$10=\"\",\"\",VLOOKUP(新規!$T$10,県域情報!$A$2:$N$32,8,FALSE))","v":""}]
[]
["添　架　条　件"]
[]
[1,{"$f":"IF(新規!T12=\"\",\"\",IF(新規!T12=\"その他\",新規!T13,新規!T12))","v":""},null,"申請書兼承諾書（以下、「本申請書」という。）は、NTT西日本株式会社（以下、「当社」という。）が所有する電柱"]
[null,"（以下、「本物件」という。）に対する申請者の電柱添架（以下、「本添架設備」という。）に関し、添架料、工事の実施方法、維持管理、費用負担等の基本的事項を定めることを目的とする。"]
[2,"当社及び申請者は、次の各号のいずれにも該当しないことを表明し、将来にわたって次の各号のいずれにも該当しないことを確約する。\n（1）自ら又は自らの役員（取締役、執行役又は監査役）が、暴力団（暴力団員による不当な行為の防止等に関する法律（平成3年法律第77号）第2条第2号）、暴力団員（暴力団員による不当な行為の防止等に関する法律 第2条第6号）、暴力団員でなくなった時から5年間を経過しない者、若しくはこれらに準ずる者、又は暴力団若しくは暴力団員と密接な関係を有する者（以下、これらを個別に又は総称して「暴力団員等」という。）であること\n（2）自らの行う事業が、暴力団員等の支配を受けていると認められること\n（3）自らの行う事業に関し、暴力団員等の威力を利用し、財産上の不当な利益を図る目的で暴力団員等を利用し、又は、暴力団員等の威力を利用する目的で暴力団員等を従事させていると認められること\n（4）自らが暴力団員等に対して資金を提供し、便宜を供与し、又は不当に優先的に扱うなどの関与をしていると認められること\n（5）本契約の履行が、暴力団員等の活動を助長し、又は暴力団の運営に資するものであること\n（6）暴力団員等に自己の名義を利用させ、電柱添架の申請を行うこと"]
[3,"当社及び申請者は、相手方が次の各号のいずれかに該当するときは、何らの通知、催告を要せず即時に本申請書による申請（以下、「本申請」という。）を解除することができる。\n（1）第2項に違反したとき\n（2）自ら又は第三者を通じて次に掲げる行為をしたとき\n　　　①相手方に対する暴力的な要求行為\n　　　②相手方に対する法的な責任を超えた不当な要求行為\n　　　③相手方に対する脅迫的言辞又は暴力的行為\n　　　④風説を流布し、又は偽計若しくは威力を用いて、相手方の信用を毀損し、又は相手方の業務を妨害する行為\n　　　⑤その他前各号に準ずる行為\n（3）申請者が、本物件の使用に当たり、本物件又は本物件の周辺において、著しく粗野若しくは乱暴な言動を行い、又は威勢を示すことにより、付近の住民又は通行人に不安を覚えさせる行為をしたとき"]
[4,"当社及び申請者は、前項の規定により本契約を解除した場合、相手方に損害が生じても、これを賠償する責を負わないものとする。"]
[5,"申請者は、本添架設備の工事の実施、維持管理等に当たっては必要な関係行政上の手続を確実に履行しなければならない。"]
[6,"申請者は、当社の要請があった場合は、前項の行政上の手続きを履行したことを証する書面の写しを当社に提出又は提示するものとする。"]
[7,"申請者の添架物を当社の電柱に添架する条件は、当社の定める技術基準並びに、道路法、有線電気通信設備令及び電気設備に関する技術基準を定める省令によるものとする。"]
[8,"申請者及び住所の変更があったときは、すみやかに申し出ること。"]
[9,"添架設備の設置は電柱の銘板及び電柱シールが隠れないように設置すること。"]
[10,"添架設備の設置は取付の角度は車道、もしくは歩道90度に設置すること。"]
[11,"添架設備の設置は地上から4.5m以上の位置に設置すること。ただし各種法律、道路法及び市区町村等により別途定められている規定があればその規定に準じること。"]
[12,"添架設備の設置はNTT西日本ケーブルとの離隔を0.3m以上確保すること。"]
[13,"添架設備の設置は原則としてバンドにより取付ける事とし、特に電柱を貫通するボルト等は使用しないこと。"]
[14,"添架設備には所有者のネームプレート等を掲載し、所有者が分かるようにすること。"]
[15,"添架料については、道路占用料又は敷地使用料の減免、添架設備の公共性を考慮し、個別に設定するものとし、有償の場合は別途契約を締結する。"]
[16,"申請者は、当社が所有する電柱に対する電柱添架により行う事業の内容は、特定個人（企業）の営利目的としたものを除き、地域住民、道路通行の安全性、利便性の向上に寄与することとなるものを基本とする。"]
[17,"申請者は、本物件が施設されている土地の権利者等から添架の承諾及び工事の許可を自己の責任と負担において取得するものとする。"]
[18,"申請者が本物件に添架したこと等を理由に、土地の権利者等から当社に対し、本物件等の敷地使用料の増額、その他の苦情の申し出があった場合は、申請者の責任と負担において解決するものとする。"]
[19,"当社は本電柱添架等について調査の結果、当社の技術基準及び当該電柱のケーブル設備計画を勘案し、現在添架が可能であり本来業務への影響がない場合で、セキュリティ確保（申請者の添架物に起因する発火・発煙のおそれがないことの確認を含む。）が図られる場合に限り、添架を承認する。"]
[20,"当社が本添架設備に対して、本電柱添架等について実施した現地調査等の費用は、申請者が負担するものとする。ただし、消費税相当額に１円未満の端数がある場合は、その額を切り捨てるものとする。"]
[21,"添架期間は承諾日から1年間とする。"]
[22,"本申請書の添架期間満了の2ヵ月前までに、当社又は申請者から書面により本申請内容の変更又は解約の申し出がないときは、当社において支障の無い限り1年延長するものとし、以後この例によるものとする。"]
[23,"当社又は申請者は、双方協議のうえ、この添架期間中であっても、書面により本申請書の内容を変更又は解約することができるものとする。"]
[24,"本添架設備の工事等は、当社による承諾後、原則として3ヵ月以内に実施しなければならない。ただし、この期間に工事を実施できない場合で、当社においてその遅延した理由につき正当な事由があると認めたときは、この限りでない。"]
[25,"申請者は、本添架設備の工事を実施する場合は、当社が別に定める技術基準その他当社の指示するところに従い、当社の電気通信設備の損傷防止及び第三者の安全確保に十分配意しなければならない。"]
[26,"申請者は、添架工事等を完了したときは、速やかに「添架工事着工完了届」を提出するものとする。申請者の届出の提出に伴い当社は検査を実施し、不良箇所がある場合は直ちに改修を行わせ再検査するものとする。"]
[27,"26項で実施した立会及び現地検査の費用は、申請者が負担するものとし、消費税の扱いについては、20項を適用する。"]
[]
[]
[]
[]
[]
["添　架　条　件"]
[]
[28,"本添架設備の維持管理は、当社の電気通信設備及び業務に一切の支障を与えないようにするものとし、申請者は、次の各号に規定する全ての事項を行うものとする。\n(1)申請者は、本添架設備の管理責任者を明確にするとともに、本添架設備が当社の設備に支障をきたすと判断した場合、当社が本物件を移設・改修する場合又は当社が設備の新設・改修を行い本添架設備との離隔を確保できなくなる場合は、申請者が自己の負担により速やかに本添架設備の移設改修工事を実施する。\n(2)当社が保守等の工事において、当社の責めに帰すべき事由以外の事由により、本添架設備が損傷した場合は、申請者の負担により修理を実施する。\n(3)本添架設備の設置に関して第三者からの苦情、訴訟の提起、その他紛争があった場合は、申請者の責任のもと迅速かつ適切に対応する。\n(4)前号に規定する場合において、訴訟費用及び弁護士費用を含む全ての費用を申請者が負担し、責任をもって当該紛争等を処理、解決するものとすること。また、当社が損害等を被ったときは、申請者は、その一切の損害を賠償するとともに、当社が負担した訴訟費用及び弁護士費用を含む全ての費用を負担するものとすること。"]
[29,"申請者は、次に掲げる各号に該当する場合は、当社の指示するところに従い速やかに本添架設備を変更又は撤去しなければならない。\n(1)　地下化、ケーブル統合等の理由により、電柱が撤去されるとき。\n(2)　その他当社の業務上の都合により当社が申請者に対し設備の変更又は撤去を求めたとき。\n(3)　申請者が、自己の都合により設備の変更又は撤去を必要とするとき。\n(4)　その他公益上等の理由により、当社が申請者に対し設備の変更又は撤去を求めたとき。\n(5)　土地所有者又は道路管理者から電柱の移転又は撤去を求められたとき。"]
[30,"前項の場合において、本添架設備の変更又は撤去が遅延したときは、当社は本添架設備の変更又は撤去を行う旨の通知を行ったのち、自ら本添架設備を変更又は撤去することができるものとする。\nこの場合の変更又は撤去に要する費用は全て申請者が負担しなければならない。"]
[31,"前項において当社が本添架設備を撤去した場合において、撤去物品は全て申請者に返納するものとする。ただし、撤去物品を申請者が引き取れない場合においては、当社が処分することができるものとするが、その費用についても申請者が全て負担するものとする。なお、撤去物品の処分については、当社が処分する旨の通知をした後、14日を経過してなお申請者の意思表示がない場合は、物品の処分に申請者が同意したものとみなすものとする。"]
[32,"申請者は、第30項及び第31項の当社の措置については何らの異議を申し立てることができない。"]
[33,"第29項の本添架設備の変更又は撤去の工事を実施する場合は、第27項及び第28項の規定を準用するものとする。"]
[34,"申請者は当社の情報提供依頼により、本添架設備の設備情報を提供する。"]
[35,"警察機関及び道路管理者等の行政機関から本添架設備の所有者及び設備情報について問い合わせがあった場合は、当社はこれらの情報を行政機関等に開示できるものとする。"]
[36,"本添架設備の工事、又は維持管理並びに本添架設備の変更又は撤去に要する一切の費用は、申請者が負担するものとする。"]
[37,"申請者が16項に定める事業内容以外の事業を行ったとき及びその他本申請書に定める事項の履行に誠意がないと当社が認めた場合は、当社は申請者に対し本申請書の解除を通告し、申請者の設備の撤去を求めることができるものとする。この場合、申請者は、自己の費用負担において直ちに設備を撤去しなければならない。"]
[38,"当社は、天災地変、その他の不可抗力又は道路拡幅等の自らの責に帰すべからざる事由により申請者に電柱を使用させることが困難となった場合は、双方協議のうえ本申請を解除することができるものとする。この場合の費用については、添架物の撤去費用は申請者が、また電柱の原状復旧費用は当社が負担する。"]
[39,"申請者は、本物件の使用を必要としなくなったときは、当社に対し、速やかにその旨を申し出るものとし、当社及び申請者は本申請を解除するものとする。この場合の費用については申請者が負担とする。"]
[40,"当社の使用計画の変更（地下化、ルート変更等）により本申請を解除する場合は、本申請の解除を通知した日から解除までに、当社は原則として6ヶ月以上の期間を設けるものとし、申請者は早期に本添架設備の撤去を含め、一切の処理を完了させるものとする。本申請を解除する日が添架期間満了日以後の場合には添架期間がこの日まで延長されるものとし、以後の更新は行わない。この場合の費用については、本添架設備の撤去費用及び本物件の原状復旧費用は申請者が負担する。"]
[41,"第37項から第40項の場合において、本添架設備の撤去が遅延したときは、当社は自ら本添架設備を撤去することができるものとする。この場合の撤去に要する費用は全て申請者が負担しなければならない。なお、撤去後の申請者の設備の扱いについては、第31項を準用する。"]
[42,"本申請の添架の実施に伴って申請者が当社又は第三者に損害を与えた場合は、申請者は自己の費用負担により誠意をもって賠償等の措置を行うものとする。第三者からの苦情等についても同様とする。"]
[43,"申請者の責めに帰すべき事由により当社の電柱において発火、発煙又は落下等が生じた場合（申請者が設置した装置等の不具合等に起因して生じた場合を含む。）において、当社又は第三者に損害が生じたときは、申請者は、その損害（当社又は第三者が行う消火活動等の緊急措置によって生じたもの（その緊急措置を行った者の故意又は重大な過失によって生じたものを除く。）を含む。）を賠償することを要する。この場合において、当社及び申請者は消火活動等の緊急措置を行った者に対して、その緊急措置によって生じた損害に係る賠償請求権を放棄するものとし、その第三者は申請者に対し、直接に損害賠償を請求できるものとする。"]
[44,"当社の工事において申請者の添架物を破損させた場合、当社に故意あるいは重大な過失が無い限り、当社は一切責任を負わないものとする。"]
[45,"本申請解除後、申請者が設備を撤去（又は事情により当社が申請者の設備を撤去）するまでにおいて、当該添架設備の弛み、落下、その他の事象により当社又は第三者に損害が生じた場合についても、申請者は自己の費用負担により誠意をもって賠償等の措置を行うものとする。"]
[46,"申請者は、29項の設備の変更又は撤去が発生した場合、当社の定める技術基準に基づき移設工事を実施するものとし、その場合の費用負担については36項によることとするが、これによらない場合は49項によることとする。"]
[47,"申請者は、いかなる理由があっても、本申請によって生ずる権利を第三者に譲渡し又は担保に供してはならないものとする。"]
[48,"本申請により知り得た当社及び申請者の添架設備及び電柱に関わるあらゆる事項について、当社、当社の代理人、及び申請者は守秘義務を負うものとする。"]
[49,"本申請に定めのない事項又は疑義を生じた事項については、双方誠意をもって協議し措置するものとする。"]
[50,"前項の協議が整わない場合は、申請者は、当社の指示するところに従わなければならないものとする。"]
[51,"本申請に関する一切の紛争については、申請先当社の所在地を管轄する地方裁判所を合意管轄裁判所と定める。"]
[]
["様式１６－１"]
[]
["添　架　設　備　　一　覧　表"]
[]
["NO","電柱番号札",null,null,null,null,null,null,null,"設置場所",null,null,null,null,null,null,"添架設備",null,"数量","道路占用許可\n私有地の同意",null,null,null,null,"NTT記入欄"]
[null,"NTT電柱番号",null,null,null,null,"電力柱番号\n※任意",null,null,null,null,null,null,null,null,null,null,null,null,null,null,null,null,null,"可　否"]
[1]
[]
[2]
[]
[3]
[]
[4]
[]
[5]
[]
[6]
[]
[7]
[]
[8]
[]
[9]
[]
[10]
[]
[11]
[]
[12]
[]
[13]
[]
[14]
[]
[15]

{"sheet":"新-様式16-2","index":10,"n_rows":21,"n_cols":30,"rows_kept":21,"cut":false,"hidden":false,"merged":[[7,29,7,42],[3,0,3,42],[4,0,4,42],[5,0,5,42],[6,4,6,13],[6,16,6,22],[6,24,6,33],[6,34,6,42],[7,2,7,6],[7,7,7,15],[7,16,7,19],[7,20,7,25],[7,26,7,28],[8,0,8,42],[9,0,9,3],[9,4,9,10],[9,12,9,14],[9,16,9,18],[9,20,9,28],[9,29,9,42],[10,0,10,28],[10,29,10,42],[11,0,11,28],[11,29,12,42],[12,0,14,18],[13,22,13,26],[13,29,13,42],[14,29,17,42],[19,0,19,42],[40,22,41,24],[14,44,14,45],[15,0,15,28],[16,0,16,28],[17,1,17,25],[17,26,17,28],[18,0,18,42]]}
[]
[]
[]
["様式１６－２"]
["添　架　協　議　票　兼　完　成　状　況　票"]
[]
["協議・完成の別　",null,null,"【","協議　・　完成",null,null,null,null,null,null,null,null,null,"】"]
["NO",1,"添架希望\n電柱名・番号 ",null,null,null,null,{"$f":"IF('新-様式16'!$B$138=\"\",\"\",'新-様式16'!$B$138)","v":""},null,null,null,null,null,null,null,null,"単独柱・\n共架柱の別",null,null,null,"単独柱",null,null,null,null,null,"設置\n場所",null,null,{"$f":"IF('新-様式16'!$J$138=\"\",\"\",'新-様式16'!$J$138)","v":""}]
[]
["１．調査年月日　　　　　　　　　",null,null,null,null,null,null,null,null,null,null,"年",null,null,null,"月",null,null,null,"日",null,null,null,null,null,null,null,null,null,"３．添架位置図（上から見た図）"]
["２．添架位置図　",null,null,null,null,null,null,null,null,null,null,null,null,null,null,null,null,null,null,null,null,null,null,null,null,null,null,null,null,"※添架設備設置方向を記入"]
["※添架予定ポイント（添架完了ポイント）を明示し、\n　地上高及び各電線類、工作物との離隔を測定し記入すること。"]
[]
[null,null,null,null,null,null,null,null,null,null,null,null,null,null,null,null,null,null,null,null,null,null,"設置の高さ：　　ｍ",null,null,null,null,null,null,"４．特記事項"]
[]
["※添架希望ポイントを赤で塗りつぶす"]
["※腕金設置位置を赤で塗りつぶす"]
[]
["※添架工事完成時に、協議の際に申告のあった添架ポイント等に変更がある場合は、"]
["　添架位置図を修正し、その理由を特記事項へ記入すること。"]
["４．申請電柱状況写真　"]

{"sheet":"構造図","index":11,"n_rows":38,"n_cols":7,"rows_kept":38,"cut":false,"hidden":false,"merged":[[3,1,3,6],[5,1,5,6],[7,1,7,6],[10,4,10,5]]}
[]
[]
[]
[null,"防犯灯等設置設備構造図"]
[]
[null,"下記へ記載するか、寸法・重量等仕様の分かるもの貼付。（仕様書のコピー等）\n\n※指定様式は問いませんので寸法、重量等仕様が分かるものを提出願います。"]
[]
[null,"下記仕様の設備を設置いたします。"]
[]
[]
[null,"・種類：蛍光灯（　　　　　　　　　　　　　　　",null,"）Ｗ・ＬＥＤ　（品番：",null,null,")"]
[null,"・電圧　   　 　（",null,"）Ｖ（※１００Ｖまで）"]
[null,"・重量　　 　 　（　　　",null,"）ｋｇ"]
[]
[]
[null,null,null,null,"cm"]
[null,null,null,null,null,null,"cm"]
[]
[]
[]
[]
[]
[]
[]
[]
[null,null,"cm"]
[]
[]
[]
[]
[]
[]
[]
[]
[]
[]
[]
[null,null,"取付付属品（品番：",null,"）"]

{"sheet":"新-チェックシート","index":12,"n_rows":15,"n_cols":3,"rows_kept":15,"cut":false,"hidden":false,"merged":[[4,0,5,11],[14,2,15,9],[14,10,15,10]]}
[]
[]
[]
[]
["（新規申請）郵送前チェックシート"]
[]
[]
[null,"2部","様式(16)申請書兼承諾書・添架条件"]
[null,"2部","様式(16-1)添架設備一覧表"]
[null,"1部","様式(16-2)添架協議票兼完成状況票"]
[]
[null,"上記以外（※ツールでは作成できません）"]
[null,"1部","位置図　"]
[null,"1部","設置設備構造図"]
[null,null,"返送用切手　　　　　　　　　　　　　　　　　　　　　　　　　　（180円切手を同封してください。）"]

{"sheet":"写真例","index":13,"n_rows":4,"n_cols":15,"rows_kept":4,"cut":false,"hidden":false,"merged":[[3,14,4,17]]}
[]
[]
[]
[null,null,null,null,null,null,null,null,null,null,null,null,null,null,"様式１６－2"]

{"sheet":"位置図例","index":14,"n_rows":0,"n_cols":0,"rows_kept":0,"cut":false,"hidden":false,"merged":[]}

{"sheet":"写真例②","index":15,"n_rows":4,"n_cols":15,"rows_kept":4,"cut":false,"hidden":false,"merged":[[3,14,4,17]]}
[]
[]
[]
[null,null,null,null,null,null,null,null,null,null,null,null,null,null,"様式１６－2"]

{"sheet":"新-様式16-3","index":16,"n_rows":34,"n_cols":14,"rows_kept":34,"cut":false,"hidden":false,"merged":[[10,0,10,4],[10,5,10,13],[3,0,3,13],[4,0,4,13],[5,0,5,13],[6,0,6,7],[6,8,6,13],[7,0,7,7],[8,0,8,4],[8,5,8,13],[9,0,9,1],[9,2,9,3],[9,5,9,13],[18,1,18,5],[18,6,18,13],[11,0,11,4],[11,5,11,13],[12,0,12,4],[12,7,12,13],[13,0,13,6],[13,7,13,13],[14,0,14,6],[14,7,14,12],[15,0,15,13],[16,0,16,13],[17,0,17,13],[19,0,22,0],[19,1,22,5],[19,7,19,13],[20,7,20,13],[21,7,21,13],[22,7,22,13],[23,1,23,5],[23,6,23,13],[24,0,25,0],[24,1,25,3],[24,4,24,5],[24,6,24,13],[25,4,25,5],[25,6,25,13],[26,0,27,0],[26,1,27,3],[26,4,26,5],[26,6,26,13],[27,4,27,5],[27,6,27,13],[32,0,32,13],[33,0,33,13],[28,0,31,0],[28,1,31,3],[28,4,28,5],[28,6,28,13],[29,4,29,5],[29,6,29,13],[30,4,30,5],[30,6,30,13],[31,4,31,5],[31,6,31,13]]}
[]
[]
[]
["様式１６－３"]
[]
["添　架　工　事　着　工　完　了　届"]
[]
[null,null,null,null,null,null,null,null,null,"年",null,"月",null,"日"]
["NTT西日本株式会社"]
[{"$f":"新規!AL10","v":""},null,"支店長　殿"]
[]
[]
[null,null,null,null,null,null,null,"行政・警察・自治会・町会　名"]
[]
[null,null,null,null,null,null,null,"（　氏名　)　",null,null,null,null,null,"印"]
[]
["下記のとおりお届けします。"]
[]
[1,"工事の種類",null,null,null,null,"新設工事　　取替工事　　撤去工事　"]
[2,"工事の場所",null,null,null,null,"承諾番号"]
[null,null,null,null,null,null,"整理番号"]
[null,null,null,null,null,null,"承諾年月日"]
[null,null,null,null,null,null,"施工場所"]
[3,"工事の対象及び添架施設",null,null,null,null,"申請書兼承諾書のとおり"]
[4,"工事年月日",null,null,"着工"]
[null,null,null,null,"完了"]
[5,"連絡責任者",null,null,"氏名"]
[null,null,null,null,"電話"]
[6,"工事施工",null,null,"施工会社"]
[null,null,null,null,"住所"]
[null,null,null,null,"責任者"]
[null,null,null,null,"電話"]
[]
["　ケーブル等の添架、及び工事に伴い発生した土地所有者等からの要望、電柱移設等を含めた苦情等、トラブルの一切について、当社において責任を持って対応し解決いたします。"]

{"sheet":"新-様式16-2②","index":17,"n_rows":21,"n_cols":30,"rows_kept":21,"cut":false,"hidden":false,"merged":[[7,29,7,42],[3,0,3,42],[4,0,4,42],[5,0,5,42],[6,4,6,13],[6,16,6,22],[6,24,6,33],[6,34,6,42],[7,2,7,6],[7,7,7,15],[7,16,7,19],[7,20,7,25],[7,26,7,28],[8,0,8,42],[9,0,9,3],[9,4,9,10],[9,12,9,14],[9,16,9,18],[9,20,9,28],[9,29,9,42],[10,0,10,28],[10,29,10,42],[11,0,11,28],[11,29,12,42],[12,0,14,18],[13,22,13,26],[13,29,13,42],[14,29,17,42],[19,0,19,42],[40,22,41,24],[14,44,14,45],[15,0,15,28],[16,0,16,28],[17,1,17,25],[17,26,17,28],[18,0,18,42]]}
[]
[]
[]
["様式１６－２"]
["添　架　協　議　票　兼　完　成　状　況　票"]
[]
["協議・完成の別　",null,null,"【","協議　・　完成",null,null,null,null,null,null,null,null,null,"】"]
["NO",1,"添架希望\n電柱名・番号 ",null,null,null,null,null,null,null,null,null,null,null,null,null,"単独柱・\n共架柱の別",null,null,null,"単独柱",null,null,null,null,null,"設置\n場所",null,null,{"$f":"IF('新-様式16'!$J$138=\"\",\"\",'新-様式16'!$J$138)","v":""}]
[]
["１．調査年月日　　　　　　　　　",null,null,null,null,null,null,null,null,null,null,"年",null,null,null,"月",null,null,null,"日",null,null,null,null,null,null,null,null,null,"３．添架位置図（上から見た図）"]
["２．添架位置図　",null,null,null,null,null,null,null,null,null,null,null,null,null,null,null,null,null,null,null,null,null,null,null,null,null,null,null,null,"※添架設備設置方向を記入"]
["※添架予定ポイント（添架完了ポイント）を明示し、\n　地上高及び各電線類、工作物との離隔を測定し記入すること。"]
[]
[null,null,null,null,null,null,null,null,null,null,null,null,null,null,null,null,null,null,null,null,null,null,"設置の高さ：　　ｍ",null,null,null,null,null,null,"４．特記事項"]
[]
["※添架希望ポイントを赤で塗りつぶす"]
["※腕金設置位置を赤で塗りつぶす"]
[]
["※添架工事完成時に、協議の際に申告のあった添架ポイント等に変更がある場合は、"]
["　添架位置図を修正し、その理由を特記事項へ記入すること。"]
["４．申請電柱状況写真　"]

{"sheet":"新-チェックシート②","index":18,"n_rows":9,"n_cols":3,"rows_kept":9,"cut":false,"hidden":false,"merged":[[4,0,5,11],[14,2,15,9],[14,10,15,10]]}
[]
[]
[]
[]
["（新規申請・着工完了届）郵送前チェックシート"]
[]
[]
[null,"1部","様式(16-3) 添架工事着工完了届"]
[null,"1部","様式(16-2)添架協議票兼完成状況票"]

{"sheet":"廃止解約","index":19,"n_rows":32,"n_cols":42,"rows_kept":32,"cut":false,"hidden":false,"merged":[[26,2,26,3],[26,4,26,8],[26,9,26,28],[26,29,26,33],[26,34,26,45],[25,2,25,3],[25,4,25,8],[25,9,25,28],[25,29,25,33],[25,34,25,45],[27,2,27,3],[27,4,27,8],[27,9,27,28],[27,29,27,33],[27,34,27,45],[23,2,23,3],[23,9,23,28],[23,29,23,33],[23,34,23,45],[24,2,24,3],[24,4,24,8],[24,9,24,28],[24,29,24,33],[24,34,24,45],[22,2,22,3],[22,4,22,8],[22,9,22,28],[22,29,22,33],[22,34,22,45],[20,2,21,3],[20,4,20,28],[20,29,21,33],[20,34,21,45],[21,4,21,8],[21,9,21,28],[3,7,5,38],[7,2,8,3],[7,4,8,18],[7,19,8,45],[9,2,10,3],[9,4,10,18],[9,19,10,25],[9,26,10,36],[9,37,10,40],[9,41,10,45]]}
[]
[]
[]
[null,null,null,null,null,null,null,"「廃止・解約申請」初期画面"]
[]
[]
[null,null,"１．基本情報の登録（各様式に反映されます）"]
[null,null,"№",null,"項目名",null,null,null,null,null,null,null,null,null,null,null,null,null,null,"入力項目"]
[]
[null,null,1,null," 地域",null,null,null,null,null,null,null,null,null,null,null,null,null,null,null,null,null,null,null,null,null,"NTT西日本申請先：",null,null,null,null,null,null,null,null,null,null,{"$f":"IF(廃止解約!T10=\"\",\"\",VLOOKUP(廃止解約!T10,県域情報!A2:B32,2,FALSE))","v":""},null,null,null,"支店 宛て"]
[]
[]
[]
[]
[]
[]
[]
[]
[]
[null,null,"２．廃止・解約工事の申請（本ツールで作成できる様式）",null,null,null,null,null,null,null,null,null,null,null,null,null,null,null,null,null,null,null,null,null,null,null,null,null,null,"　　","　 「●」をクリックして下さい。"]
[null,null,"№",null,"必要書類",null,null,null,null,null,null,null,null,null,null,null,null,null,null,null,null,null,null,null,null,null,null,null,null,"各シートへ\n移動します。",null,null,null,null,"備考"]
[null,null,null,null,"様式番号",null,null,null,null,"書類名称"]
[null,null,1,null," 様式16-4",null,null,null,null," 添架申込解約申請書",null,null,null,null,null,null,null,null,null,null,null,null,null,null,null,null,null,null,null,"●"]
[null,null,2,null," 様式16-1",null,null,null,null," 添架設備一覧表",null,null,null,null,null,null,null,null,null,null,null,null,null,null,null,null,null,null,null,"●"]
[null,null,3,null," 様式14",null,null,null,null," 写真",null,null,null,null,null,null,null,null,null,null,null,null,null,null,null,null,null,null,null,"●",null,null,null,null,"※シート複製可能"]
[null,null,4,null," 様式16-3",null,null,null,null," 添架着工完了届",null,null,null,null,null,null,null,null,null,null,null,null,null,null,null,null,null,null,null,"●"]
[null,null,5,null," 様式14",null,null,null,null," 写真",null,null,null,null,null,null,null,null,null,null,null,null,null,null,null,null,null,null,null,"●",null,null,null,null,"※シート複製可能"]
[null,null,6,null," チェックシート",null,null,null,null," （廃止・解約申請）郵送前チェックシート",null,null,null,null,null,null,null,null,null,null,null,null,null,null,null,null,null,null,null,"●"]
[]
[]
["END"]
[null,null,null,null,"　"]

{"sheet":"廃解-様式16-4","index":20,"n_rows":34,"n_cols":17,"rows_kept":34,"cut":false,"hidden":false,"merged":[[31,0,31,16],[32,2,32,3],[32,5,32,15],[33,2,33,3],[33,5,33,15],[29,0,29,4],[29,5,29,6],[29,8,29,15],[30,0,30,4],[30,5,30,6],[30,8,30,15],[27,2,27,3],[27,5,27,6],[27,8,27,15],[28,0,28,4],[28,5,28,6],[28,8,28,15],[26,0,26,16],[19,0,19,16],[20,2,20,3],[20,5,20,16],[21,0,21,16],[22,2,22,3],[22,5,22,15],[23,0,23,16],[24,2,24,3],[24,11,24,16],[25,0,25,3],[25,11,25,16],[18,2,18,3],[18,5,18,15],[11,0,11,4],[11,5,11,16],[12,0,12,4],[12,10,12,16],[13,0,13,9],[13,10,13,16],[14,0,14,9],[14,10,14,15],[15,0,15,16],[16,0,16,16],[17,0,17,16],[10,0,10,4],[10,5,10,16],[3,0,3,16],[4,0,4,16],[5,0,5,16],[6,0,6,10],[6,11,6,16],[7,0,7,10],[8,0,8,4],[8,5,8,16],[9,0,9,1],[9,2,9,3],[9,5,9,16]]}
["て"]
[]
[]
["様式１６－４"]
[]
["添　架　申　込　解　約　申　請　書"]
[]
[null,null,null,null,null,null,null,null,null,null,null,null,"年",null,"月",null,"日"]
["NTT西日本株式会社"]
[{"$f":"廃止解約!AL10","v":""},null,"支店長　殿"]
[]
[]
[null,null,null,null,null,null,null,null,null,null,"行政・警察・自治会・町会　名"]
[]
[null,null,null,null,null,null,null,null,null,null,"（　氏名　)　",null,null,null,null,null,"印"]
[]
["　下記のとおり添架施設を撤去しますので報告します。"]
[]
[null,"１.","工事の場所"]
[]
[null,"２.","撤去施設",null,null,"別紙「添架設備一覧表」のとおり"]
[]
[null,"３.","撤去理由"]
[]
[null,"４.","撤去工事予定期間",null,null,"自",null,"年",null,"月",null,"日"]
[null,null,null,null,null,"至",null,"年",null,"月",null,"日（承諾解除日）"]
[]
[null,"５.","工事施工業者",null,null,"会社名"]
[null,null,null,null,null,"住所"]
[null,null,null,null,null,"責任者"]
[null,null,null,null,null,"連絡先電話"]
[]
[null,"６.","承諾番号"]
[null,null,"(管理番号)"]

{"sheet":"廃解-様式16-1","index":21,"n_rows":38,"n_cols":25,"rows_kept":38,"cut":false,"hidden":false,"merged":[[37,19,38,22],[37,24,38,26],[38,9,38,15],[35,18,36,18],[35,19,36,22],[35,24,36,26],[36,9,36,15],[37,0,38,0],[37,1,38,5],[37,6,38,8],[37,9,37,15],[37,16,38,17],[37,18,38,18],[35,0,36,0],[35,1,36,5],[35,6,36,8],[35,9,35,15],[35,16,36,17],[31,24,32,26],[32,9,32,15],[33,0,34,0],[33,1,34,5],[33,6,34,8],[33,9,33,15],[33,16,34,17],[33,18,34,18],[33,19,34,22],[33,24,34,26],[31,0,32,0],[31,1,32,5],[31,6,32,8],[31,9,31,15],[31,16,32,17],[31,18,32,18],[31,19,32,22],[34,9,34,15],[27,24,28,26],[28,9,28,15],[29,0,30,0],[29,1,30,5],[29,6,30,8],[29,9,29,15],[29,16,30,17],[29,18,30,18],[29,19,30,22],[29,24,30,26],[30,9,30,15],[27,0,28,0],[27,1,28,5],[27,6,28,8],[27,9,27,15],[27,16,28,17],[27,18,28,18],[27,19,28,22],[23,24,24,26],[24,9,24,15],[25,0,26,0],[25,1,26,5],[25,6,26,8],[25,9,25,15],[25,16,26,17],[25,18,26,18],[25,19,26,22],[25,24,26,26],[23,0,24,0],[23,1,24,5],[23,6,24,8],[23,9,23,15],[23,16,24,17],[23,18,24,18],[23,19,24,22],[26,9,26,15],[19,24,20,26],[20,9,20,15],[21,0,22,0],[21,1,22,5],[21,6,22,8],[21,9,21,15],[21,16,22,17],[21,18,22,18],[21,19,22,22],[21,24,22,26],[22,9,22,15],[19,0,20,0],[19,1,20,5],[19,6,20,8],[19,9,19,15],[19,16,20,17],[19,18,20,18],[19,19,20,22],[15,24,16,26],[16,9,16,15],[17,0,18,0],[17,1,18,5],[17,6,18,8],[17,9,17,15],[17,16,18,17],[17,18,18,18],[17,19,18,22],[17,24,18,26],[15,0,16,0],[15,1,16,5],[15,6,16,8],[15,9,15,15],[15,16,16,17],[15,18,16,18],[15,19,16,22],[18,9,18,15],[13,0,14,0],[13,1,14,5],[13,6,14,8],[13,9,13,15],[13,16,14,17],[13,18,14,18],[13,19,14,22],[13,24,14,26],[14,9,14,15],[10,9,10,15],[11,0,12,0],[11,1,12,5],[11,6,12,8],[11,9,11,15],[11,16,12,17],[8,6,8,8],[8,24,8,26],[9,0,10,0],[9,1,10,5],[9,6,10,8],[9,9,9,15],[9,16,10,17],[9,18,10,18],[9,19,10,22],[9,24,10,26],[11,18,12,18],[11,19,12,22],[11,24,12,26],[12,9,12,15],[3,0,3,26],[5,0,6,26],[7,0,8,0],[7,1,7,8],[7,9,8,15],[7,16,8,17],[7,18,8,18],[7,19,8,22],[7,24,7,26],[8,1,8,5]]}
["て"]
[]
[]
["様式１６－１"]
[]
["添　架　設　備　　一　覧　表"]
[]
["NO","電柱番号札",null,null,null,null,null,null,null,"設置場所",null,null,null,null,null,null,"添架設備",null,"数量","道路占用許可\n私有地の同意",null,null,null,null,"NTT記入欄"]
[null,"NTT電柱番号",null,null,null,null,"電力柱番号\n※任意",null,null,null,null,null,null,null,null,null,null,null,null,null,null,null,null,null,"可　否"]
[1]
[]
[2]
[]
[3]
[]
[4]
[]
[5]
[]
[6]
[]
[7]
[]
[8]
[]
[9]
[]
[10]
[]
[11]
[]
[12]
[]
[13]
[]
[14]
[]
[15]

{"sheet":"廃解-様式14","index":22,"n_rows":38,"n_cols":12,"rows_kept":38,"cut":false,"hidden":false,"merged":[[7,1,7,2],[7,4,7,5],[10,0,34,5],[10,6,34,11],[37,0,61,5],[37,6,61,11]]}
[]
[]
[]
[null,null,null,null,null,null,null,null,null,null,null,"様式１４"]
[null,null,null,null,null,null,null,null,null,"※指定の様式でなくても可"]
["写真"]
["申込書添付書類（電柱）　"]
["線路名",null,null,"電柱番号"]
[]
["（工事前電柱全体写真）",null,null,null,null,null,"(工事前電柱札写真）"]
["・カラー写真を掲載下さい\n・添架ポイントがはっきり判るように撮影\n・電柱地際から電柱頭部まではっきり判るように撮影",null,null,null,null,null,"工事前のＮＴＴ柱番号が見えるように撮影して下さい"]
[]
[]
[]
[]
[]
[]
[]
[]
[]
[]
[]
[]
[]
[]
[]
[]
[]
[]
[]
[]
[]
[]
[]
[]
[]
["（工事後電柱全体写真）",null,null,null,null,null,"(工事後電柱札写真）"]
["・カラー写真を掲載下さい\n・添架ポイントがはっきり判るように撮影\n・電柱地際から電柱頭部まではっきり判るように撮影",null,null,null,null,null,"工事後のＮＴＴ柱番号が見えるように撮影して下さい"]

{"sheet":"廃解-様式16-3","index":23,"n_rows":34,"n_cols":14,"rows_kept":34,"cut":false,"hidden":false,"merged":[[32,0,32,13],[33,0,33,13],[28,0,31,0],[28,1,31,3],[28,4,28,5],[28,6,28,13],[29,4,29,5],[29,6,29,13],[30,4,30,5],[30,6,30,13],[31,4,31,5],[31,6,31,13],[26,0,27,0],[26,1,27,3],[26,4,26,5],[26,6,26,13],[27,4,27,5],[27,6,27,13],[23,1,23,5],[23,6,23,13],[24,0,25,0],[24,1,25,3],[24,4,24,5],[24,6,24,13],[25,4,25,5],[25,6,25,13],[19,0,22,0],[19,1,22,5],[19,7,19,13],[20,7,20,13],[21,7,21,13],[22,7,22,13],[18,1,18,5],[18,6,18,13],[11,0,11,4],[11,5,11,13],[12,0,12,4],[12,7,12,13],[13,0,13,6],[13,7,13,13],[14,0,14,6],[14,7,14,12],[15,0,15,13],[16,0,16,13],[17,0,17,13],[10,0,10,4],[10,5,10,13],[3,0,3,13],[4,0,4,13],[5,0,5,13],[6,0,6,7],[6,8,6,13],[7,0,7,7],[8,0,8,4],[8,5,8,13],[9,0,9,1],[9,2,9,3],[9,5,9,13]]}
[]
[]
[]
["様式１６－３"]
[]
["添　架　工　事　着　工　完　了　届"]
[]
[null,null,null,null,null,null,null,null,null,"年",null,"月",null,"日"]
["NTT西日本株式会社"]
[{"$f":"廃止解約!AL10","v":""},null,"支店長　殿"]
[]
[]
[null,null,null,null,null,null,null,"行政・警察・自治会・町会　名"]
[]
[null,null,null,null,null,null,null,"（　氏名　)　",null,null,null,null,null,"印"]
[]
["　各土地所有者からの工事施工許可、道路使用許可等の取得を完了いたしましたので、下記により添架工事を実施いたします。"]
[]
[1,"工事の種類",null,null,null,null,"新設工事　　取替工事　　撤去工事　"]
[2,"工事の場所",null,null,null,null,"承諾番号"]
[null,null,null,null,null,null,"整理番号"]
[null,null,null,null,null,null,"承諾年月日"]
[null,null,null,null,null,null,"施工場所"]
[3,"工事の対象及び添架施設",null,null,null,null,"申請書兼承諾書のとおり"]
[4,"工事年月日",null,null,"着工"]
[null,null,null,null,"完了"]
[5,"連絡責任者",null,null,"氏名"]
[null,null,null,null,"電話"]
[6,"工事施工",null,null,"施工会社"]
[null,null,null,null,"住所"]
[null,null,null,null,"責任者"]
[null,null,null,null,"電話"]
[]
["　ケーブル等の添架、及び工事に伴い発生した土地所有者等からの要望、電柱移設等を含めた苦情等、トラブルの一切について、当社において責任を持って対応し解決いたします。"]

{"sheet":"廃解-チェックシート","index":24,"n_rows":17,"n_cols":3,"rows_kept":17,"cut":false,"hidden":false,"merged":[[4,0,5,11],[12,11,13,11]]}
[]
[]
[]
[]
["（廃止・解約申請）郵送前チェックシート"]
[]
[]
[null,"廃止・解約工事の申請"]
[null,"1部","様式(16-4)　添架申込解約申請書"]
[null,"1部","様式(16-1)　添架設備一覧表"]
[null,"1部","様式(14)　写真"]
[]
[null,"工事完了後"]
[null,"1部","様式(16-3) 添架工事着工完了届"]
[null,"1部","様式(14)　写真"]
[]
[null,"上記以外（※ツールでは作成できません）"]

{"sheet":"廃解-様式14②","index":25,"n_rows":38,"n_cols":12,"rows_kept":38,"cut":false,"hidden":false,"merged":[[7,1,7,2],[7,4,7,5],[10,0,34,5],[10,6,34,11],[37,0,61,5],[37,6,61,11]]}
[]
[]
[]
[null,null,null,null,null,null,null,null,null,null,null,"様式１４"]
[null,null,null,null,null,null,null,null,null,"※指定の様式でなくても可"]
["写真"]
["申込書添付書類（電柱）　"]
["線路名",null,null,"電柱番号"]
[]
["（工事前電柱全体写真）",null,null,null,null,null,"(工事前電柱札写真）"]
["・カラー写真を掲載下さい\n・添架ポイントがはっきり判るように撮影\n・電柱地際から電柱頭部まではっきり判るように撮影",null,null,null,null,null,"工事前のＮＴＴ柱番号が見えるように撮影して下さい"]
[]
[]
[]
[]
[]
[]
[]
[]
[]
[]
[]
[]
[]
[]
[]
[]
[]
[]
[]
[]
[]
[]
[]
[]
[]
["（工事後電柱全体写真）",null,null,null,null,null,"(工事後電柱札写真）"]
["・カラー写真を掲載下さい\n・添架ポイントがはっきり判るように撮影\n・電柱地際から電柱頭部まではっきり判るように撮影",null,null,null,null,null,"工事後のＮＴＴ柱番号が見えるように撮影して下さい"]

{"sheet":"廃解-チェックシート②","index":26,"n_rows":9,"n_cols":3,"rows_kept":9,"cut":false,"hidden":true,"merged":[[21,10,22,10],[4,0,5,11],[10,10,11,10],[12,3,12,8],[17,3,17,7],[18,3,18,8]]}
[]
[]
[]
[]
["（廃止・解約申請着工完了届）郵送前チェックシート"]
[]
[]
[null,"1部","様式(16-3) 添架工事着工完了届"]
[null,"1部","様式(14)　写真"]

{"sheet":"名義変更","index":27,"n_rows":57,"n_cols":42,"rows_kept":57,"cut":false,"hidden":false,"merged":[[29,2,29,3],[29,4,29,8],[29,9,29,28],[29,29,29,33],[29,34,29,45],[30,2,30,3],[30,4,30,8],[30,9,30,28],[30,29,30,33],[30,34,30,45],[28,34,28,45],[26,2,27,3],[26,4,26,28],[26,29,27,33],[26,34,27,45],[27,4,27,8],[27,9,27,28],[28,2,28,3],[28,4,28,8],[28,9,28,28],[28,29,28,33],[9,41,10,45],[3,7,5,38],[7,2,8,3],[7,4,8,18],[7,19,8,45],[9,2,10,3],[9,4,10,13],[9,14,10,18],[9,19,10,25],[9,26,10,36],[9,37,10,40]]}
[]
[]
[]
[null,null,null,null,null,null,null,"「新規申請」初期画面"]
[]
[]
[null,null,"１．基本情報の登録（各様式に反映されます）"]
[null,null,"№",null,"項目名",null,null,null,null,null,null,null,null,null,null,null,null,null,null,"入力項目"]
[]
[null,null,1,null," 地域",null,null,null,null,null,null,null,null,null,"（必須入力）",null,null,null,null,null,null,null,null,null,null,null,"NTT西日本申請先：",null,null,null,null,null,null,null,null,null,null,{"$f":"IF(名義変更!T10=\"\",\"\",VLOOKUP(名義変更!T10,県域情報!A2:B32,2,FALSE))","v":""},null,null,null,"支店 宛て"]
[]
[]
[]
[]
[]
[]
[]
[]
[]
[]
[]
[]
[]
[]
[]
[null,null,"２．名義変更時"]
[null,null,"№",null,"必要書類",null,null,null,null,null,null,null,null,null,null,null,null,null,null,null,null,null,null,null,null,null,null,null,null,"各シートへ\n移動します。",null,null,null,null,"入力状態"]
[null,null,null,null,"様式番号",null,null,null,null,"書類名称"]
[null,null,1,null," 様式16-5",null,null,null,null,"　添架申込名義変更届",null,null,null,null,null,null,null,null,null,null,null,null,null,null,null,null,null,null,null,"●",null,null,null,null,"　"]
[null,null,2,null," 様式16-1",null,null,null,null,"　添架設備一覧表",null,null,null,null,null,null,null,null,null,null,null,null,null,null,null,null,null,null,null,"●"]
[null,null,3,null," チェックシート",null,null,null,null," （名義変更）郵送前チェックシート",null,null,null,null,null,null,null,null,null,null,null,null,null,null,null,null,null,null,null,"●"]
[]
[]
[]
[]
[]
[]
[]
[]
[]
[]
[]
[]
[]
[]
[]
[]
[]
[]
[]
[]
[]
[]
[]
[]
[]
["END"]

{"sheet":"名-様式16-5","index":28,"n_rows":31,"n_cols":15,"rows_kept":31,"cut":false,"hidden":false,"merged":[[10,0,10,4],[10,5,10,14],[3,0,3,14],[4,0,4,14],[5,0,5,14],[6,0,6,8],[6,9,6,14],[7,0,7,8],[8,0,8,4],[8,5,8,14],[9,0,9,1],[9,2,9,3],[9,5,9,14],[18,2,18,3],[18,7,18,13],[11,0,11,4],[11,5,11,14],[12,0,12,4],[12,8,12,14],[13,0,13,7],[13,8,13,14],[14,0,14,7],[14,8,14,13],[15,0,15,14],[16,0,16,14],[17,0,17,14],[24,0,24,4],[24,7,24,13],[19,0,19,4],[19,7,19,11],[19,12,19,13],[20,0,20,4],[20,7,20,13],[21,0,21,14],[22,2,22,3],[22,7,22,13],[23,0,23,4],[23,7,23,11],[23,12,23,13],[25,0,25,14],[26,2,26,3],[26,5,26,13],[27,0,27,14],[28,2,28,3],[28,5,28,13],[35,0,35,14],[36,0,36,14],[29,0,29,14],[30,2,30,3],[30,5,34,13],[31,0,31,4],[32,0,32,4],[33,0,33,4],[34,0,34,4]]}
[]
[]
[]
["様式１６－５"]
[]
["添　架　申　込　名　義　変　更　届"]
[]
[null,null,null,null,null,null,null,null,null,null,"年",null,"月",null,"日"]
["NTT西日本株式会社"]
[{"$f":"名義変更!AL10","v":""},null,"支店長　殿"]
[]
[]
[null,null,null,null,null,null,null,null,"行政・警察・自治会・町会　名"]
[]
[null,null,null,null,null,null,null,null,"（　氏名　)　",null,null,null,null,null,"印"]
[]
["以下添架申込の名義について、下記のとおり変更いたしますのでお届いたします。"]
[]
[null,"１.","旧名義人",null,null,"住所"]
[null,null,null,null,null,"氏名",null,null,null,null,null,null,"印"]
[null,null,null,null,null,"連絡先"]
[]
[null,"２.","新名義人",null,null,"住所"]
[null,null,null,null,null,"氏名",null,null,null,null,null,null,"印"]
[null,null,null,null,null,"連絡先"]
[]
[null,"３.","添架施設の場所"]
[]
[null,"４.","添架施設",null,null,"( 別紙「添架設備一覧表」のとおり)"]
[]
[null,"５.","その他"]

{"sheet":"名-様式16-1","index":29,"n_rows":39,"n_cols":25,"rows_kept":39,"cut":false,"hidden":false,"merged":[[4,0,4,26],[6,0,7,26],[8,0,9,0],[8,1,8,8],[8,9,9,15],[8,16,9,17],[8,18,9,18],[8,19,9,22],[8,24,8,26],[9,1,9,5],[11,9,11,15],[12,0,13,0],[12,1,13,5],[12,6,13,8],[12,9,12,15],[12,16,13,17],[9,6,9,8],[9,24,9,26],[10,0,11,0],[10,1,11,5],[10,6,11,8],[10,9,10,15],[10,16,11,17],[10,18,11,18],[10,19,11,22],[10,24,11,26],[12,18,13,18],[12,19,13,22],[12,24,13,26],[13,9,13,15],[14,0,15,0],[14,1,15,5],[14,6,15,8],[14,9,14,15],[14,16,15,17],[14,18,15,18],[14,19,15,22],[14,24,15,26],[15,9,15,15],[16,24,17,26],[17,9,17,15],[18,0,19,0],[18,1,19,5],[18,6,19,8],[18,9,18,15],[18,16,19,17],[18,18,19,18],[18,19,19,22],[18,24,19,26],[16,0,17,0],[16,1,17,5],[16,6,17,8],[16,9,16,15],[16,16,17,17],[16,18,17,18],[16,19,17,22],[19,9,19,15],[20,24,21,26],[21,9,21,15],[22,0,23,0],[22,1,23,5],[22,6,23,8],[22,9,22,15],[22,16,23,17],[22,18,23,18],[22,19,23,22],[22,24,23,26],[23,9,23,15],[20,0,21,0],[20,1,21,5],[20,6,21,8],[20,9,20,15],[20,16,21,17],[20,18,21,18],[20,19,21,22],[24,24,25,26],[25,9,25,15],[26,0,27,0],[26,1,27,5],[26,6,27,8],[26,9,26,15],[26,16,27,17],[26,18,27,18],[26,19,27,22],[26,24,27,26],[24,0,25,0],[24,1,25,5],[24,6,25,8],[24,9,24,15],[24,16,25,17],[24,18,25,18],[24,19,25,22],[27,9,27,15],[28,24,29,26],[29,9,29,15],[30,0,31,0],[30,1,31,5],[30,6,31,8],[30,9,30,15],[30,16,31,17],[30,18,31,18],[30,19,31,22],[30,24,31,26],[31,9,31,15],[28,0,29,0],[28,1,29,5],[28,6,29,8],[28,9,28,15],[28,16,29,17],[28,18,29,18],[28,19,29,22],[32,24,33,26],[33,9,33,15],[34,0,35,0],[34,1,35,5],[34,6,35,8],[34,9,34,15],[34,16,35,17],[34,18,35,18],[34,19,35,22],[34,24,35,26],[32,0,33,0],[32,1,33,5],[32,6,33,8],[32,9,32,15],[32,16,33,17],[32,18,33,18],[32,19,33,22],[35,9,35,15],[38,19,39,22],[38,24,39,26],[39,9,39,15],[36,18,37,18],[36,19,37,22],[36,24,37,26],[37,9,37,15],[38,0,39,0],[38,1,39,5],[38,6,39,8],[38,9,38,15],[38,16,39,17],[38,18,39,18],[36,0,37,0],[36,1,37,5],[36,6,37,8],[36,9,36,15],[36,16,37,17]]}
[]
[]
[]
[]
["様式１６－１"]
[]
["添　架　設　備　　一　覧　表"]
[]
["NO","電柱番号札",null,null,null,null,null,null,null,"設置場所",null,null,null,null,null,null,"添架設備",null,"数量","道路占用許可\n私有地の同意",null,null,null,null,"NTT記入欄"]
[null,"NTT電柱番号",null,null,null,null,"電力柱番号\n※任意",null,null,null,null,null,null,null,null,null,null,null,null,null,null,null,null,null,"可　否"]
[1]
[]
[2]
[]
[3]
[]
[4]
[]
[5]
[]
[6]
[]
[7]
[]
[8]
[]
[9]
[]
[10]
[]
[11]
[]
[12]
[]
[13]
[]
[14]
[]
[15]

{"sheet":"名-チェックシート","index":30,"n_rows":9,"n_cols":3,"rows_kept":9,"cut":false,"hidden":false,"merged":[[4,0,5,11],[14,2,15,9],[14,10,15,10]]}
[]
[]
[]
[]
["（名義変更）郵送前チェックシート"]
[]
[]
[null,"1部","様式(16-5)添架申込名義変更届"]
[null,"1部","様式(16-1)添架設備一覧表"]